Workbook

Sheet Guide
E5: GUIDE
F7: This tool is designed for all energy networks in the UK. It is used to assess the potential impact of innovation projects on customers in situations of vulnerability.
F9: As a result of answering a set of questions, users will automatically generate a score for the project they are assessing. The tool also allows users to dive deeper into the results by examining the full 'impact matrix,' which gives a granular breakdown of the impacts on customers across all scenarios considered by the tool.
A11: For
G12: First-Time Setup Instructions
G14: Please save the file after following the instructions below to embed changes for future use.
G16: 1) First, enable macros by selecting the yellow notification(s) above.
G18: 2) Select 'Fit Screen' below to adjust the layout of the tool to the resolution of your computer screen.
G20: Finally, select 'Full Screen Mode' from the dropdown arrow in the top right corner. (Optional)
G24: General Use Intructions
G26: After general use, do not save the file. Instead, save your results to PDF by following the instructions below.
G28: To navigate between sheets, do not use the tabs below. Only use the buttons provided on sheets.
G30: For best results, only use the tool on your primary display screen.
G32: 1) Select 'Begin' to navigate to the questions sheet. For each question, select the checkbox that corresponds to the innovation project you are testing. You must answer every question.
G34: 2) Once completed, select 'See Results' to view the results dashboard. Select 'See More Details' to view the Impact Matrix, High-Level Mitigations, Questions and Answers, and overall project impact scores sections.
G36: Save 'Results Dashboard' and 'Detailed Results' by selecting the relevant buttons on the questions sheet.
G38: To restart, select 'Clear Answers' on the questions sheet. Only return to answers by selecting 'See Results'.
G40: To contact support via Outlook, select 'Contact' below on this sheet.
O46: Alternatively, contact daniel@sirio-strategies.com

Sheet Questions
D5: QUESTIONS
D7: Is the project expected to:
D9: 1) focus on reserch only, and not deliver any immediate impacts on customers or the network? | I9: i | J9: Yes: | L9: No: | N9: Unsure: | P9: Over what timeframe will the impact be felt by customers? Optional | R9: Additional Comments Optional
D10: 2) impact customers directly or indirectly? | I10: i | J10: Yes: | L10: No: | N10: Unsure:
D11: 3) reduce or increase costs (such as bills, appliance maintenance, etc.) for households? | I11: i | J11: Reduce: | L11: Increase: | N11: No Change/ Unrelated:
D12: Reasoning:
D13: 4) improve or hinder the exchange of information between networks and customers? | I13: i | J13: Improve: | L13: Hinder: | N13: No Change/ Unrelated:
D14: Reasoning:
D15: 5) improve or hinder the network's understanding of customers' needs and the ability to address these? | I15: i | J15: Improve: | L15: Hinder: | N15: No Change/ Unrelated:
D16: Reasoning:
D17: 6) reduce or increase the need, time taken, and disruptions caused by staff visits to customers' homes? | I17: i | J17: Reduce: | L17: Increase: | N17: No Change/ Unrelated:
D18: Reasoning:
D19: 7) improve or hinder customers' health, safety, and accessibility within or immediately around the home? | I19: i | J19: Improve: | L19: Hinder: | N19: No Change/ Unrelated:
D20: Reasoning:
D21: 8) improve or hinder customers' ability to heat, cook, wash and use medical equipment during supply interruptions? | I21: i | J21: Improve: | L21: Hinder: | N21: No Change/ Unrelated:
D22: Reasoning:
D23: 9) reduce or increase the occurrence and duration of supply interruptions? | I23: i | J23: Reduce: | L23: Increase: | N23: No Change/ Unrelated:
D24: Reasoning:
D25: 10) reduce or increase the need for, time taken, and space required to work on trees and public and private roads in residential areas? | I25: i | J25: Reduce: | L25: Increase: | N25: No Change/ Unrelated:
D26: Reasoning:
G34: K11 | H34: FALSE | I34: O11 | J34: FALSE | K34: =J34*70 -> 0 | L34: =(H34+J34)*145 -> 0
G35: K13 | H35: FALSE | I35: O13 | J35: FALSE | K35: =J35*70 -> 0 | L35: =(H35+J35)*145 -> 0
G36: K15 | H36: FALSE | I36: O15 | J36: FALSE | K36: 0 | L36: 0
G37: K17 | H37: FALSE | I37: O17 | J37: FALSE | K37: 0 | L37: 0
G38: K19 | H38: FALSE | I38: O19 | J38: FALSE | K38: 0 | L38: 0
G39: K21 | H39: FALSE | I39: O21 | J39: FALSE | K39: 0 | L39: 0
G40: K23 | H40: FALSE | I40: O23 | J40: FALSE | K40: 0 | L40: 0
G41: K25 | H41: FALSE | I41: O25 | J41: FALSE | K41: 0 | L41: 0

Sheet PEA notes
A1: DRAFT PEA SECTION GUIDANCE

Sheet Results Dashboard (hidden)
D5: RESULTS DASHBOARD
E7: Project Impact Score | L7: Customer Impact Calculator
E8: Overall Project Score: | G8: =IFERROR(10*(G12/(G12+G13)),0) -> 5 | H8: /10 | I8: i
E11: Relative Impact Score: | G11: =(SUMS!C35-SUMS!C37)/(SUMS!C36-SUMS!C37)*10 -> 5 | H11: /10 | I11: i | L11: Overall Impact Score: | O11: =IF(SUMS!$K$44=1,SUMS!K34,IF(SUMS!$K$44=2,SUMS!L34,IF(SUMS!$K$44=3,SUMS!M34,IF(SUMS!$K$44=4,SUMS!N34,IF(SUMS!$K$44=5,SUMS!O34,IF(SUMS!$K$44=6,SUMS!P34,IF(SUMS!$K$44=7,SUMS!Q34,IF(SUMS!$K$44=8,SUMS!R34,IF(SUMS!$K$44=9,SUMS!S34,IF(SUMS!$K$44=10,SUMS!T34,IF(SUMS!$K$44=11,SUMS!U34,IF(SUMS!$K$44=12,SUMS!V34,IF(SUMS!$K$44=13,SUMS!W34,IF(SUMS!$K$44=14,SUMS!X34,IF(SUMS!$K$44=15,SUMS!Y34,IF(SUMS!$K$44=16,SUMS!Z34,IF(SUMS!$K$44=17,SUMS!AA34,IF(SUMS!$K$44=18,SUMS!AB34,IF(SUMS!$K$44=19,SUMS!AC34,IF(SUMS!$K$44=20,SUMS!AD34,IF(SUMS!$K$44=21,SUMS!AE34,IF(SUMS!$K$44=22,SUMS!AF34,IF(SUMS!$K$44=23,SUMS!AG34,IF(SUMS!$K$44=24,SUMS!AH34, IF(SUMS!$K$44=25,SUMS!AI34,IF(SUMS!$K$44=26,SUMS!AJ34,IF(SUMS!$K$44=27,SUMS!AK34,IF(SUMS!$K$44=28,SUMS!AL34,IF(SUMS!$K$44=29,"",0))))))))))))))))))))))))))))) ->  | Q11: i
E12: Positive Impact Score: | G12: =(SUMS!C38-SUMS!C40)/(SUMS!C36-SUMS!C40)*10 -> 10.07388626 | H12: /10 | I12: i
E13: Negative Impact Score: | G13: =((SUMS!C39*-1)-SUMS!C40)/(SUMS!C36-SUMS!C40)*10 -> 10.07388626 | H13: /10 | I13: i
Q19: i
F22: Negative Impacts and Mitigations
E23: Driver of Negative Impact | H23: High-Level Mitigation
E24: Project increases costs for households: | H24: Where costs are expected to increase as a result of new ‘systems’ installed in the customer’s premises, stakeholders believe it is essential to ensure that customers in vulnerable situations can use these properly to avoid further bill impacts.
E25: Project hinders the exchange of information between networks and customers: | H25: Engage different groups of vulnerable customers and their representatives to understand preferred channels, identify the optimal format and type of content. Gathering and communicating tailored information effectively is critical.
E26: Project hinders the network's understanding of customers' needs and the ability to address these: | H26: Customers with communication disabilities are often underrepresented in data collected. Networks should ensure that provisions are made to engage these customers through their preferred method of communication.
E27: Project increases the need for, time taken and disruption cased by staff vists to customers' homes: | H27: To date, stakeholders have not shared recommendations on how to mitigate this type of impact on customers in vulnerable situations.
E28: Project hinders health, safety and accessibility within or immediately around customers' homes: | H28: To date, stakeholders have not shared recommendations on how to mitigate this type of impact on customers in vulnerable situations.
E29: Project hinders customers' ability to heat, cook, wash and use medical equipment during supply interruptions: | H29: To date, stakeholders have not shared recommendations on how to mitigate this type of impact on customers in vulnerable situations.
E30: Project increases the occurrence and duration of supply interruptions: | H30: To date, stakeholders have not shared recommendations on how to mitigate this type of impact on customers in vulnerable situations.
E31: Project increases the need for, time taken, and space required to work on trees and public and private roads in residential areas: | H31: To date, stakeholders have not shared recommendations on how to mitigate this type of impact on customers in vulnerable situations.
E32: Unavailable | H32: There is no need to take mitigation measures.

Sheet Detailed Results (hidden)
C3: IMPACT MATRIX RESULTS
D5: Types of Impact | F5: Project reduces costs for households | G5: Project increases costs for households | H5: Project improves the exchange of information between networks and customers | I5: Project hinders the exchange of information between networks and customers | J5: Project improves the network's understanding of customers' needs and the ability to address these | K5: Project hinders the network's understanding of customers' needs and the ability to address these | L5: Project reduces the need for, time taken and disruption cased by staff vists to customers' homes | M5: Project increases the need for, time taken and disruption cased by staff vists to customers' homes | N5: Project improves health, safety and accessibility within or immediately around customers' homes | O5: Project hinders health, safety and accessibility within or immediately around customers' homes | P5: Project improves customers' ability to heat, cook, wash and use medical equipment during supply interruptions | Q5: Project hinders customers' ability to heat, cook, wash and use medical equipment during supply interruptions | R5: Project reduces the occurrence and duration of supply interruptions | S5: Project increases the occurrence and duration of supply interruptions | T5: Project reduces the need for, time taken, and space required to work on trees and public and private roads in residential areas | U5: Project increases the need for, time taken, and space required to work on trees and public and private roads in residential areas | V5: Overall impact | W5: Overall positive impact | X5: Overall negative impact
C6: Situational Circumstances | D6: Dwelling | E6: Flats | F6: =SUM(Fill!F5) -> 0.99 | G6: =SUM(Fill!G5) -> -0.99 | H6: =SUM(Fill!H5) -> 0.63 | I6: =SUM(Fill!I5) -> -0.63 | J6: =SUM(Fill!J5) -> 0.76 | K6: =SUM(Fill!K5) -> -0.76 | L6: =SUM(Fill!L5) -> 0.61 | M6: =SUM(Fill!M5) -> -0.61 | N6: =SUM(Fill!N5) -> 0.88 | O6: =SUM(Fill!O5) -> -0.88 | P6: =SUM(Fill!P5) -> 1 | Q6: =SUM(Fill!Q5) -> -1 | R6: =SUM(Fill!R5) -> 1 | S6: =SUM(Fill!S5) -> -1 | T6: N/A | U6: N/A | V6: =SUM(SUMS!B18) -> 0 | W6: =SUM(SUMS!B19) -> 5.87 | X6: =SUM(SUMS!B20) -> -5.87
E7: Houses | F7: =SUM(Fill!F6) -> 0.96 | G7: =SUM(Fill!G6) -> -0.96 | H7: =SUM(Fill!H6) -> 0.63 | I7: =SUM(Fill!I6) -> -0.63 | J7: =SUM(Fill!J6) -> 0.76 | K7: =SUM(Fill!K6) -> -0.76 | L7: =SUM(Fill!L6) -> 0.87 | M7: =SUM(Fill!M6) -> -0.87 | N7: =SUM(Fill!N6) -> 0.88 | O7: =SUM(Fill!O6) -> -0.88 | P7: =SUM(Fill!P6) -> 1 | Q7: =SUM(Fill!Q6) -> -1 | R7: =SUM(Fill!R6) -> 0.92 | S7: =SUM(Fill!S6) -> -0.92 | T7: N/A | U7: N/A | V7: =SUM(SUMS!C18) -> 0 | W7: =SUM(SUMS!C19) -> 6.02 | X7: =SUM(SUMS!C20) -> -6.02
D8: Tenure | E8: Owner occupier | F8: =SUM(Fill!F7) -> 0.96 | G8: =SUM(Fill!G7) -> -0.96 | H8: =SUM(Fill!H7) -> 0.75 | I8: =SUM(Fill!I7) -> -0.75 | J8: =SUM(Fill!J7) -> 0.8 | K8: =SUM(Fill!K7) -> -0.8 | L8: =SUM(Fill!L7) -> 0.91 | M8: =SUM(Fill!M7) -> -0.91 | N8: N/A | O8: N/A | P8: N/A | Q8: N/A | R8: N/A | S8: N/A | T8: N/A | U8: N/A | V8: =SUM(SUMS!D18) -> 0 | W8: =SUM(SUMS!D19) -> 3.42 | X8: =SUM(SUMS!D20) -> -3.42
E9: Private renter | F9: =SUM(Fill!F8) -> 0.96 | G9: =SUM(Fill!G8) -> -0.96 | H9: =SUM(Fill!H8) -> 0.67 | I9: =SUM(Fill!I8) -> -0.67 | J9: =SUM(Fill!J8) -> 0.72 | K9: =SUM(Fill!K8) -> -0.72 | L9: =SUM(Fill!L8) -> 0.65 | M9: =SUM(Fill!M8) -> -0.65 | N9: N/A | O9: N/A | P9: N/A | Q9: N/A | R9: N/A | S9: N/A | T9: N/A | U9: N/A | V9: =SUM(SUMS!E18) -> 0 | W9: =SUM(SUMS!E19) -> 3 | X9: =SUM(SUMS!E20) -> -3
E10: Social renter | F10: =SUM(Fill!F9) -> 1.21 | G10: =SUM(Fill!G9) -> -1.21 | H10: =SUM(Fill!H9) -> 0.75 | I10: =SUM(Fill!I9) -> -0.75 | J10: =SUM(Fill!J9) -> 0.88 | K10: =SUM(Fill!K9) -> -0.88 | L10: =SUM(Fill!L9) -> 0.7 | M10: =SUM(Fill!M9) -> -0.7 | N10: N/A | O10: N/A | P10: N/A | Q10: N/A | R10: N/A | S10: N/A | T10: N/A | U10: N/A | V10: =SUM(SUMS!F18) -> 0 | W10: =SUM(SUMS!F19) -> 3.54 | X10: =SUM(SUMS!F20) -> -3.54
D11: Heating system | E11: Central heating system | F11: =SUM(Fill!F10) -> 1.04 | G11: =SUM(Fill!G10) -> -1.04 | H11: =SUM(Fill!H10) -> 0.67 | I11: =SUM(Fill!I10) -> -0.67 | J11: =SUM(Fill!J10) -> 0.76 | K11: =SUM(Fill!K10) -> -0.76 | L11: =SUM(Fill!L10) -> 0.74 | M11: =SUM(Fill!M10) -> -0.74 | N11: N/A | O11: N/A | P11: =SUM(Fill!P10) -> 1.09 | Q11: =SUM(Fill!Q10) -> -1.09 | R11: =SUM(Fill!R10) -> 1.17 | S11: =SUM(Fill!S10) -> -1.17 | T11: N/A | U11: N/A | V11: =SUM(SUMS!G18) -> 0 | W11: =SUM(SUMS!G19) -> 5.47 | X11: =SUM(SUMS!G20) -> -5.47
E12: Storage heaters | F12: =SUM(Fill!F11) -> 1.13 | G12: =SUM(Fill!G11) -> -1.13 | H12: =SUM(Fill!H11) -> 0.75 | I12: =SUM(Fill!I11) -> -0.75 | J12: =SUM(Fill!J11) -> 0.72 | K12: =SUM(Fill!K11) -> -0.72 | L12: =SUM(Fill!L11) -> 0.65 | M12: =SUM(Fill!M11) -> -0.65 | N12: N/A | O12: N/A | P12: =SUM(Fill!P11) -> 1.08 | Q12: =SUM(Fill!Q11) -> -1.08 | R12: =SUM(Fill!R11) -> 1.04 | S12: =SUM(Fill!S11) -> -1.04 | T12: N/A | U12: N/A | V12: =SUM(SUMS!H18) -> 0 | W12: =SUM(SUMS!H19) -> 5.37 | X12: =SUM(SUMS!H20) -> -5.37
E13: Room heaters | F13: =SUM(Fill!F12) -> 1.04 | G13: =SUM(Fill!G12) -> -1.04 | H13: =SUM(Fill!H12) -> 0.67 | I13: =SUM(Fill!I12) -> -0.67 | J13: =SUM(Fill!J12) -> 0.76 | K13: =SUM(Fill!K12) -> -0.76 | L13: =SUM(Fill!L12) -> 0.65 | M13: =SUM(Fill!M12) -> -0.65 | N13: N/A | O13: N/A | P13: =SUM(Fill!P12) -> 1.17 | Q13: =SUM(Fill!Q12) -> -1.17 | R13: =SUM(Fill!R12) -> 1.08 | S13: =SUM(Fill!S12) -> -1.08 | T13: N/A | U13: N/A | V13: =SUM(SUMS!I18) -> 0 | W13: =SUM(SUMS!I19) -> 5.37 | X13: =SUM(SUMS!I20) -> -5.37
D14: Readiness for digital technology | E14: Limited digital literacy | F14: =SUM(Fill!F13) -> 0.96 | G14: =SUM(Fill!G13) -> -0.96 | H14: =SUM(Fill!H13) -> 0.71 | I14: =SUM(Fill!I13) -> -0.71 | J14: =SUM(Fill!J13) -> 0.76 | K14: =SUM(Fill!K13) -> -0.76 | L14: N/A | M14: N/A | N14: =SUM(Fill!N13) -> 1.12 | O14: =SUM(Fill!O13) -> -1.12 | P14: =SUM(Fill!P13) -> 1.04 | Q14: =SUM(Fill!Q13) -> -1.04 | R14: =SUM(Fill!R13) -> 1.04 | S14: =SUM(Fill!S13) -> -1.04 | T14: N/A | U14: N/A | V14: =SUM(SUMS!J18) -> 0 | W14: =SUM(SUMS!J19) -> 5.63 | X14: =SUM(SUMS!J20) -> -5.63
C15: Needs Codes Circumstances | D15: Blind | F15: =AVERAGE(Fill!F15:F16,Fill!F18:F19) -> 1.315 | G15: =AVERAGE(Fill!G15:G16,Fill!G18:G19) -> -1.315 | H15: =AVERAGE(Fill!H15:H16,Fill!H18:H19) -> 0.925 | I15: =AVERAGE(Fill!I15:I16,Fill!I18:I19) -> -0.925 | J15: =AVERAGE(Fill!J15:J16,Fill!J18:J19) -> 1.085 | K15: =AVERAGE(Fill!K15:K16,Fill!K18:K19) -> -1.085 | L15: =AVERAGE(Fill!L15:L16,Fill!L18:L19) -> 1.325 | M15: =AVERAGE(Fill!M15:M16,Fill!M18:M19) -> -1.325 | N15: =AVERAGE(Fill!N15:N16,Fill!N18:N19) -> 1.725 | O15: =AVERAGE(Fill!O15:O16,Fill!O18:O19) -> -1.725 | P15: =AVERAGE(Fill!P15:P16,Fill!P18:P19) -> 1.74 | Q15: =AVERAGE(Fill!Q15:Q16,Fill!Q18:Q19) -> -1.74 | R15: =AVERAGE(Fill!R15:R16,Fill!R18:R19) -> 1.735 | S15: =AVERAGE(Fill!S15:S16,Fill!S18:S19) -> -1.735 | T15: =AVERAGE(Fill!T15:T16,Fill!T18:T19) -> 1.2825 | U15: =AVERAGE(Fill!U15:U16,Fill!U18:U19) -> -1.2825 | V15: =SUM(SUMS!K18) -> 0 | W15: =SUM(SUMS!K19) -> 11.1325 | X15: =SUM(SUMS!K20) -> -11.1325
D16: Partially sighted | F16: =AVERAGE(Fill!F15:F16,Fill!F18:F19) -> 1.315 | G16: =AVERAGE(Fill!G15:G16,Fill!G18:G19) -> -1.315 | H16: =AVERAGE(Fill!H15:H16,Fill!H18:H19) -> 0.925 | I16: =AVERAGE(Fill!I15:I16,Fill!I18:I19) -> -0.925 | J16: =AVERAGE(Fill!J15:J16,Fill!J18:J19) -> 1.085 | K16: =AVERAGE(Fill!K15:K16,Fill!K18:K19) -> -1.085 | L16: =AVERAGE(Fill!L15:L16,Fill!L18:L19) -> 1.325 | M16: =AVERAGE(Fill!M15:M16,Fill!M18:M19) -> -1.325 | N16: =AVERAGE(Fill!N15:N16,Fill!N18:N19) -> 1.725 | O16: =AVERAGE(Fill!O15:O16,Fill!O18:O19) -> -1.725 | P16: =AVERAGE(Fill!P15:P16,Fill!P18:P19) -> 1.74 | Q16: =AVERAGE(Fill!Q15:Q16,Fill!Q18:Q19) -> -1.74 | R16: =AVERAGE(Fill!R15:R16,Fill!R18:R19) -> 1.735 | S16: =AVERAGE(Fill!S15:S16,Fill!S18:S19) -> -1.735 | T16: =AVERAGE(Fill!T15:T16,Fill!T18:T19) -> 1.2825 | U16: =AVERAGE(Fill!U15:U16,Fill!U18:U19) -> -1.2825 | V16: =SUM(SUMS!L18) -> 0 | W16: =SUM(SUMS!L19) -> 11.1325 | X16: =SUM(SUMS!L20) -> -11.1325
D17: Hearing impairment (inc. deaf) | F17: =AVERAGE(Fill!F15:F16,Fill!F19) -> 1.196666667 | G17: =AVERAGE(Fill!G15:G16,Fill!G19) -> -1.196666667 | H17: =AVERAGE(Fill!H15:H16,Fill!H19) -> 0.9566666667 | I17: =AVERAGE(Fill!I15:I16,Fill!I19) -> -0.9566666667 | J17: =AVERAGE(Fill!J15:J16,Fill!J19) -> 1.113333333 | K17: =AVERAGE(Fill!K15:K16,Fill!K19) -> -1.113333333 | L17: =AVERAGE(Fill!L15:L16,Fill!L19) -> 1.21 | M17: =AVERAGE(Fill!M15:M16,Fill!M19) -> -1.21 | N17: =AVERAGE(Fill!N15:N16,Fill!N19) -> 1.633333333 | O17: =AVERAGE(Fill!O15:O16,Fill!O19) -> -1.633333333 | P17: =AVERAGE(Fill!P15:P16,Fill!P19) -> 1.653333333 | Q17: =AVERAGE(Fill!Q15:Q16,Fill!Q19) -> -1.653333333 | R17: =AVERAGE(Fill!R15:R16,Fill!R19) -> 1.703333333 | S17: =AVERAGE(Fill!S15:S16,Fill!S19) -> -1.703333333 | T17: =AVERAGE(Fill!T15:T16,Fill!T19) -> 1.21 | U17: =AVERAGE(Fill!U15:U16,Fill!U19) -> -1.21 | V17: =SUM(SUMS!M18) -> 0 | W17: =SUM(SUMS!M19) -> 10.67666667 | X17: =SUM(SUMS!M20) -> -10.67666667
D18: Speech impairment | F18: =AVERAGE(Fill!F15) -> 1.03 | G18: =AVERAGE(Fill!G15) -> -1.03 | H18: =AVERAGE(Fill!H15) -> 0.63 | I18: =AVERAGE(Fill!I15) -> -0.63 | J18: =AVERAGE(Fill!J15) -> 0.95 | K18: =AVERAGE(Fill!K15) -> -0.95 | L18: =AVERAGE(Fill!L15) -> 1.16 | M18: =AVERAGE(Fill!M15) -> -1.16 | N18: =AVERAGE(Fill!N15) -> 1.34 | O18: =AVERAGE(Fill!O15) -> -1.34 | P18: =AVERAGE(Fill!P15) -> 1.44 | Q18: =AVERAGE(Fill!Q15) -> -1.44 | R18: =AVERAGE(Fill!R15) -> 1.51 | S18: =AVERAGE(Fill!S15) -> -1.51 | T18: =AVERAGE(Fill!T15) -> 0.89 | U18: =AVERAGE(Fill!U15) -> -0.89 | V18: =SUM(SUMS!N18) -> 0 | W18: =SUM(SUMS!N19) -> 8.95 | X18: =SUM(SUMS!N20) -> -8.95
D19: Physical impairment | F19: =AVERAGE(Fill!F18:F19) -> 1.36 | G19: =AVERAGE(Fill!G18:G19) -> -1.36 | H19: =AVERAGE(Fill!H18:H19) -> 0.725 | I19: =AVERAGE(Fill!I18:I19) -> -0.725 | J19: =AVERAGE(Fill!J18:J19) -> 0.99 | K19: =AVERAGE(Fill!K18:K19) -> -0.99 | L19: =AVERAGE(Fill!L18:L19) -> 1.515 | M19: =AVERAGE(Fill!M18:M19) -> -1.515 | N19: =AVERAGE(Fill!N18:N19) -> 2 | O19: =AVERAGE(Fill!O18:O19) -> -2 | P19: =AVERAGE(Fill!P18:P19) -> 1.875 | Q19: =AVERAGE(Fill!Q18:Q19) -> -1.875 | R19: =AVERAGE(Fill!R18:R19) -> 1.745 | S19: =AVERAGE(Fill!S18:S19) -> -1.745 | T19: =AVERAGE(Fill!T18:T19) -> 1.57 | U19: =AVERAGE(Fill!U18:U19) -> -1.57 | V19: =SUM(SUMS!O18) -> 0 | W19: =SUM(SUMS!O19) -> 11.78 | X19: =SUM(SUMS!O20) -> -11.78
D20: Developmental condition | F20: =AVERAGE(Fill!F15:F19) -> 1.298 | G20: =AVERAGE(Fill!G15:G19) -> -1.298 | H20: =AVERAGE(Fill!H15:H19) -> 0.942 | I20: =AVERAGE(Fill!I15:I19) -> -0.942 | J20: =AVERAGE(Fill!J15:J19) -> 1.138 | K20: =AVERAGE(Fill!K15:K19) -> -1.138 | L20: =AVERAGE(Fill!L15:L19) -> 1.272 | M20: =AVERAGE(Fill!M15:M19) -> -1.272 | N20: =AVERAGE(Fill!N15:N19) -> 1.64 | O20: =AVERAGE(Fill!O15:O19) -> -1.64 | P20: =AVERAGE(Fill!P15:P19) -> 1.776 | Q20: =AVERAGE(Fill!Q15:Q19) -> -1.776 | R20: =AVERAGE(Fill!R15:R19) -> 1.752 | S20: =AVERAGE(Fill!S15:S19) -> -1.752 | T20: =AVERAGE(Fill!T15:T19) -> 1.222 | U20: =AVERAGE(Fill!U15:U19) -> -1.222 | V20: =SUM(SUMS!P18) -> 0 | W20: =SUM(SUMS!P19) -> 11.04 | X20: =SUM(SUMS!P20) -> -11.04
D21: Mental health | F21: =AVERAGE(Fill!F15:F19) -> 1.298 | G21: =AVERAGE(Fill!G15:G19) -> -1.298 | H21: =AVERAGE(Fill!H15:H19) -> 0.942 | I21: =AVERAGE(Fill!I15:I19) -> -0.942 | J21: =AVERAGE(Fill!J15:J19) -> 1.138 | K21: =AVERAGE(Fill!K15:K19) -> -1.138 | L21: =AVERAGE(Fill!L15:L19) -> 1.272 | M21: =AVERAGE(Fill!M15:M19) -> -1.272 | N21: =AVERAGE(Fill!N15:N19) -> 1.64 | O21: =AVERAGE(Fill!O15:O19) -> -1.64 | P21: =AVERAGE(Fill!P15:P19) -> 1.776 | Q21: =AVERAGE(Fill!Q15:Q19) -> -1.776 | R21: =AVERAGE(Fill!R15:R19) -> 1.752 | S21: =AVERAGE(Fill!S15:S19) -> -1.752 | T21: =AVERAGE(Fill!T15:T19) -> 1.222 | U21: =AVERAGE(Fill!U15:U19) -> -1.222 | V21: =SUM(SUMS!Q18) -> 0 | W21: =SUM(SUMS!Q19) -> 11.04 | X21: =SUM(SUMS!Q20) -> -11.04
D22: Chronic/serious illness | F22: =AVERAGE(Fill!F17) -> 1.23 | G22: =AVERAGE(Fill!G17) -> -1.23 | H22: =AVERAGE(Fill!H17) -> 1.01 | I22: =AVERAGE(Fill!I17) -> -1.01 | J22: =AVERAGE(Fill!J17) -> 1.35 | K22: =AVERAGE(Fill!K17) -> -1.35 | L22: =AVERAGE(Fill!L17) -> 1.06 | M22: =AVERAGE(Fill!M17) -> -1.06 | N22: =AVERAGE(Fill!N17) -> 1.3 | O22: =AVERAGE(Fill!O17) -> -1.3 | P22: =AVERAGE(Fill!P17) -> 1.92 | Q22: =AVERAGE(Fill!Q17) -> -1.92 | R22: =AVERAGE(Fill!R17) -> 1.82 | S22: =AVERAGE(Fill!S17) -> -1.82 | T22: =AVERAGE(Fill!T17) -> 0.98 | U22: =AVERAGE(Fill!U17) -> -0.98 | V22: =SUM(SUMS!R18) -> 0 | W22: =SUM(SUMS!R19) -> 10.67 | X22: =SUM(SUMS!R20) -> -10.67
D23: Dementia(s)/ cognitive impairment | F23: =AVERAGE(Fill!F15:F17,Fill!F19) -> 1.205 | G23: =AVERAGE(Fill!G15:G17,Fill!G19) -> -1.205 | H23: =AVERAGE(Fill!H15:H17,Fill!H19) -> 0.97 | I23: =AVERAGE(Fill!I15:I17,Fill!I19) -> -0.97 | J23: =AVERAGE(Fill!J15:J17,Fill!J19) -> 1.1725 | K23: =AVERAGE(Fill!K15:K17,Fill!K19) -> -1.1725 | L23: =AVERAGE(Fill!L15:L17,Fill!L19) -> 1.1725 | M23: =AVERAGE(Fill!M15:M17,Fill!M19) -> -1.1725 | N23: =AVERAGE(Fill!N15:N17,Fill!N19) -> 1.55 | O23: =AVERAGE(Fill!O15:O17,Fill!O19) -> -1.55 | P23: =AVERAGE(Fill!P15:P17,Fill!P19) -> 1.72 | Q23: =AVERAGE(Fill!Q15:Q17,Fill!Q19) -> -1.72 | R23: =AVERAGE(Fill!R15:R17,Fill!R19) -> 1.7325 | S23: =AVERAGE(Fill!S15:S17,Fill!S19) -> -1.7325 | T23: =AVERAGE(Fill!T15:T17,Fill!T19) -> 1.1525 | U23: =AVERAGE(Fill!U15:U17,Fill!U19) -> -1.1525 | V23: =SUM(SUMS!S18) -> 0 | W23: =SUM(SUMS!S19) -> 10.675 | X23: =SUM(SUMS!S20) -> -10.675
D24: Nebuliser, and apnoea monitor | F24: =AVERAGE(Fill!F17) -> 1.23 | G24: =AVERAGE(Fill!G17) -> -1.23 | H24: =AVERAGE(Fill!H17) -> 1.01 | I24: =AVERAGE(Fill!I17) -> -1.01 | J24: =AVERAGE(Fill!J17) -> 1.35 | K24: =AVERAGE(Fill!K17) -> -1.35 | L24: =AVERAGE(Fill!L17) -> 1.06 | M24: =AVERAGE(Fill!M17) -> -1.06 | N24: =AVERAGE(Fill!N17) -> 1.3 | O24: =AVERAGE(Fill!O17) -> -1.3 | P24: =AVERAGE(Fill!P17) -> 1.92 | Q24: =AVERAGE(Fill!Q17) -> -1.92 | R24: =AVERAGE(Fill!R17) -> 1.82 | S24: =AVERAGE(Fill!S17) -> -1.82 | T24: =AVERAGE(Fill!T17) -> 0.98 | U24: =AVERAGE(Fill!U17) -> -0.98 | V24: =SUM(SUMS!T18) -> 0 | W24: =SUM(SUMS!T19) -> 10.67 | X24: =SUM(SUMS!T20) -> -10.67
D25: Heart, lung and ventilator | F25: =AVERAGE(Fill!F17) -> 1.23 | G25: =AVERAGE(Fill!G17) -> -1.23 | H25: =AVERAGE(Fill!H17) -> 1.01 | I25: =AVERAGE(Fill!I17) -> -1.01 | J25: =AVERAGE(Fill!J17) -> 1.35 | K25: =AVERAGE(Fill!K17) -> -1.35 | L25: =AVERAGE(Fill!L17) -> 1.06 | M25: =AVERAGE(Fill!M17) -> -1.06 | N25: =AVERAGE(Fill!N17) -> 1.3 | O25: =AVERAGE(Fill!O17) -> -1.3 | P25: =AVERAGE(Fill!P17) -> 1.92 | Q25: =AVERAGE(Fill!Q17) -> -1.92 | R25: =AVERAGE(Fill!R17) -> 1.82 | S25: =AVERAGE(Fill!S17) -> -1.82 | T25: =AVERAGE(Fill!T17) -> 0.98 | U25: =AVERAGE(Fill!U17) -> -0.98 | V25: =SUM(SUMS!U18) -> 0 | W25: =SUM(SUMS!U19) -> 10.67 | X25: =SUM(SUMS!U20) -> -10.67
D26: Dialysis, feeding pump and automated medicaiton | F26: =AVERAGE(Fill!F17) -> 1.23 | G26: =AVERAGE(Fill!G17) -> -1.23 | H26: =AVERAGE(Fill!H17) -> 1.01 | I26: =AVERAGE(Fill!I17) -> -1.01 | J26: =AVERAGE(Fill!J17) -> 1.35 | K26: =AVERAGE(Fill!K17) -> -1.35 | L26: =AVERAGE(Fill!L17) -> 1.06 | M26: =AVERAGE(Fill!M17) -> -1.06 | N26: =AVERAGE(Fill!N17) -> 1.3 | O26: =AVERAGE(Fill!O17) -> -1.3 | P26: =AVERAGE(Fill!P17) -> 1.92 | Q26: =AVERAGE(Fill!Q17) -> -1.92 | R26: =AVERAGE(Fill!R17) -> 1.82 | S26: =AVERAGE(Fill!S17) -> -1.82 | T26: =AVERAGE(Fill!T17) -> 0.98 | U26: =AVERAGE(Fill!U17) -> -0.98 | V26: =SUM(SUMS!V18) -> 0 | W26: =SUM(SUMS!V19) -> 10.67 | X26: =SUM(SUMS!V20) -> -10.67
D27: Oxygen concentrator / use | F27: =AVERAGE(Fill!F17) -> 1.23 | G27: =AVERAGE(Fill!G17) -> -1.23 | H27: =AVERAGE(Fill!H17) -> 1.01 | I27: =AVERAGE(Fill!I17) -> -1.01 | J27: =AVERAGE(Fill!J17) -> 1.35 | K27: =AVERAGE(Fill!K17) -> -1.35 | L27: =AVERAGE(Fill!L17) -> 1.06 | M27: =AVERAGE(Fill!M17) -> -1.06 | N27: =AVERAGE(Fill!N17) -> 1.3 | O27: =AVERAGE(Fill!O17) -> -1.3 | P27: =AVERAGE(Fill!P17) -> 1.92 | Q27: =AVERAGE(Fill!Q17) -> -1.92 | R27: =AVERAGE(Fill!R17) -> 1.82 | S27: =AVERAGE(Fill!S17) -> -1.82 | T27: =AVERAGE(Fill!T17) -> 0.98 | U27: =AVERAGE(Fill!U17) -> -0.98 | V27: =SUM(SUMS!W18) -> 0 | W27: =SUM(SUMS!W19) -> 10.67 | X27: =SUM(SUMS!W20) -> -10.67
D28: Medicine refrigeration | F28: =AVERAGE(Fill!F17) -> 1.23 | G28: =AVERAGE(Fill!G17) -> -1.23 | H28: =AVERAGE(Fill!H17) -> 1.01 | I28: =AVERAGE(Fill!I17) -> -1.01 | J28: =AVERAGE(Fill!J17) -> 1.35 | K28: =AVERAGE(Fill!K17) -> -1.35 | L28: =AVERAGE(Fill!L17) -> 1.06 | M28: =AVERAGE(Fill!M17) -> -1.06 | N28: =AVERAGE(Fill!N17) -> 1.3 | O28: =AVERAGE(Fill!O17) -> -1.3 | P28: =AVERAGE(Fill!P17) -> 1.92 | Q28: =AVERAGE(Fill!Q17) -> -1.92 | R28: =AVERAGE(Fill!R17) -> 1.82 | S28: =AVERAGE(Fill!S17) -> -1.82 | T28: =AVERAGE(Fill!T17) -> 0.98 | U28: =AVERAGE(Fill!U17) -> -0.98 | V28: =SUM(SUMS!X18) -> 0 | W28: =SUM(SUMS!X19) -> 10.67 | X28: =SUM(SUMS!X20) -> -10.67
D29: Unable to communicate in English | F29: =AVERAGE(Fill!F15:F16) -> 1.27 | G29: =AVERAGE(Fill!G15:G16) -> -1.27 | H29: =AVERAGE(Fill!H15:H16) -> 1.125 | I29: =AVERAGE(Fill!I15:I16) -> -1.125 | J29: =AVERAGE(Fill!J15:J16) -> 1.18 | K29: =AVERAGE(Fill!K15:K16) -> -1.18 | L29: =AVERAGE(Fill!L15:L16) -> 1.135 | M29: =AVERAGE(Fill!M15:M16) -> -1.135 | N29: =AVERAGE(Fill!N15:N16) -> 1.45 | O29: =AVERAGE(Fill!O15:O16) -> -1.45 | P29: =AVERAGE(Fill!P15:P16) -> 1.605 | Q29: =AVERAGE(Fill!Q15:Q16) -> -1.605 | R29: =AVERAGE(Fill!R15:R16) -> 1.725 | S29: =AVERAGE(Fill!S15:S16) -> -1.725 | T29: =AVERAGE(Fill!T15:T16) -> 0.995 | U29: =AVERAGE(Fill!U15:U16) -> -0.995 | V29: =SUM(SUMS!Y18) -> 0 | W29: =SUM(SUMS!Y19) -> 10.485 | X29: =SUM(SUMS!Y20) -> -10.485
D30: Stair lift, hoist, electric bed | F30: =AVERAGE(Fill!F17:F19) -> 1.316666667 | G30: =AVERAGE(Fill!G17:G19) -> -1.316666667 | H30: =AVERAGE(Fill!H17:H19) -> 0.82 | I30: =AVERAGE(Fill!I17:I19) -> -0.82 | J30: =AVERAGE(Fill!J17:J19) -> 1.11 | K30: =AVERAGE(Fill!K17:K19) -> -1.11 | L30: =AVERAGE(Fill!L17:L19) -> 1.363333333 | M30: =AVERAGE(Fill!M17:M19) -> -1.363333333 | N30: =AVERAGE(Fill!N17:N19) -> 1.766666667 | O30: =AVERAGE(Fill!O17:O19) -> -1.766666667 | P30: =AVERAGE(Fill!P17:P19) -> 1.89 | Q30: =AVERAGE(Fill!Q17:Q19) -> -1.89 | R30: =AVERAGE(Fill!R17:R19) -> 1.77 | S30: =AVERAGE(Fill!S17:S19) -> -1.77 | T30: =AVERAGE(Fill!T17:T19) -> 1.373333333 | U30: =AVERAGE(Fill!U17:U19) -> -1.373333333 | V30: =SUM(SUMS!Z18) -> 0 | W30: =SUM(SUMS!Z19) -> 11.41 | X30: =SUM(SUMS!Z20) -> -11.41
D31: Unable to answer door | F31: =AVERAGE(Fill!F18:F19) -> 1.36 | G31: =AVERAGE(Fill!G18:G19) -> -1.36 | H31: =AVERAGE(Fill!H18:H19) -> 0.725 | I31: =AVERAGE(Fill!I18:I19) -> -0.725 | J31: =AVERAGE(Fill!J18:J19) -> 0.99 | K31: =AVERAGE(Fill!K18:K19) -> -0.99 | L31: =AVERAGE(Fill!L18:L19) -> 1.515 | M31: =AVERAGE(Fill!M18:M19) -> -1.515 | N31: =AVERAGE(Fill!N18:N19) -> 2 | O31: =AVERAGE(Fill!O18:O19) -> -2 | P31: =AVERAGE(Fill!P18:P19) -> 1.875 | Q31: =AVERAGE(Fill!Q18:Q19) -> -1.875 | R31: =AVERAGE(Fill!R18:R19) -> 1.745 | S31: =AVERAGE(Fill!S18:S19) -> -1.745 | T31: =AVERAGE(Fill!T18:T19) -> 1.57 | U31: =AVERAGE(Fill!U18:U19) -> -1.57 | V31: =SUM(SUMS!AA18) -> 0 | W31: =SUM(SUMS!AA19) -> 11.78 | X31: =SUM(SUMS!AA20) -> -11.78
D32: MDE electric showering/ bathing | F32: =AVERAGE(Fill!F17) -> 1.23 | G32: =AVERAGE(Fill!G17) -> -1.23 | H32: =AVERAGE(Fill!H17) -> 1.01 | I32: =AVERAGE(Fill!I17) -> -1.01 | J32: =AVERAGE(Fill!J17) -> 1.35 | K32: =AVERAGE(Fill!K17) -> -1.35 | L32: =AVERAGE(Fill!L17) -> 1.06 | M32: =AVERAGE(Fill!M17) -> -1.06 | N32: =AVERAGE(Fill!N17) -> 1.3 | O32: =AVERAGE(Fill!O17) -> -1.3 | P32: =AVERAGE(Fill!P17) -> 1.92 | Q32: =AVERAGE(Fill!Q17) -> -1.92 | R32: =AVERAGE(Fill!R17) -> 1.82 | S32: =AVERAGE(Fill!S17) -> -1.82 | T32: =AVERAGE(Fill!T17) -> 0.98 | U32: =AVERAGE(Fill!U17) -> -0.98 | V32: =SUM(SUMS!AB18) -> 0 | W32: =SUM(SUMS!AB19) -> 10.67 | X32: =SUM(SUMS!AB20) -> -10.67
D33: Pensionable age | F33: =AVERAGE(Fill!F17,Fill!F19) -> 1.14 | G33: =AVERAGE(Fill!G17,Fill!G19) -> -1.14 | H33: =AVERAGE(Fill!H17,Fill!H19) -> 0.815 | I33: =AVERAGE(Fill!I17,Fill!I19) -> -0.815 | J33: =AVERAGE(Fill!J17,Fill!J19) -> 1.165 | K33: =AVERAGE(Fill!K17,Fill!K19) -> -1.165 | L33: =AVERAGE(Fill!L17,Fill!L19) -> 1.21 | M33: =AVERAGE(Fill!M17,Fill!M19) -> -1.21 | N33: =AVERAGE(Fill!N17,Fill!N19) -> 1.65 | O33: =AVERAGE(Fill!O17,Fill!O19) -> -1.65 | P33: =AVERAGE(Fill!P17,Fill!P19) -> 1.835 | Q33: =AVERAGE(Fill!Q17,Fill!Q19) -> -1.835 | R33: =AVERAGE(Fill!R17,Fill!R19) -> 1.74 | S33: =AVERAGE(Fill!S17,Fill!S19) -> -1.74 | T33: =AVERAGE(Fill!T17,Fill!T19) -> 1.31 | U33: =AVERAGE(Fill!U17,Fill!U19) -> -1.31 | V33: =SUM(SUMS!AC18) -> 0 | W33: =SUM(SUMS!AC19) -> 10.865 | X33: =SUM(SUMS!AC20) -> -10.865
D34: Careline/telecare system | F34: =AVERAGE(Fill!F15,Fill!F17,Fill!F19) -> 1.103333333 | G34: =AVERAGE(Fill!G15,Fill!G17,Fill!G19) -> -1.103333333 | H34: =AVERAGE(Fill!H15,Fill!H17,Fill!H19) -> 0.7533333333 | I34: =AVERAGE(Fill!I15,Fill!I17,Fill!I19) -> -0.7533333333 | J34: =AVERAGE(Fill!J15,Fill!J17,Fill!J19) -> 1.093333333 | K34: =AVERAGE(Fill!K15,Fill!K17,Fill!K19) -> -1.093333333 | L34: =AVERAGE(Fill!L15,Fill!L17,Fill!L19) -> 1.193333333 | M34: =AVERAGE(Fill!M15,Fill!M17,Fill!M19) -> -1.193333333 | N34: =AVERAGE(Fill!N15,Fill!N17,Fill!N19) -> 1.546666667 | O34: =AVERAGE(Fill!O15,Fill!O17,Fill!O19) -> -1.546666667 | P34: =AVERAGE(Fill!P15,Fill!P17,Fill!P19) -> 1.703333333 | Q34: =AVERAGE(Fill!Q15,Fill!Q17,Fill!Q19) -> -1.703333333 | R34: =AVERAGE(Fill!R15,Fill!R17,Fill!R19) -> 1.663333333 | S34: =AVERAGE(Fill!S15,Fill!S17,Fill!S19) -> -1.663333333 | T34: =AVERAGE(Fill!T15,Fill!T17,Fill!T19) -> 1.17 | U34: =AVERAGE(Fill!U15,Fill!U17,Fill!U19) -> -1.17 | V34: =SUM(SUMS!AD18) -> 0 | W34: =SUM(SUMS!AD19) -> 10.22666667 | X34: =SUM(SUMS!AD20) -> -10.22666667
D35: Families with children 5 or under | F35: =AVERAGE(Fill!F17) -> 1.23 | G35: =AVERAGE(Fill!G17) -> -1.23 | H35: =AVERAGE(Fill!H17) -> 1.01 | I35: =AVERAGE(Fill!I17) -> -1.01 | J35: =AVERAGE(Fill!J17) -> 1.35 | K35: =AVERAGE(Fill!K17) -> -1.35 | L35: =AVERAGE(Fill!L17) -> 1.06 | M35: =AVERAGE(Fill!M17) -> -1.06 | N35: =AVERAGE(Fill!N17) -> 1.3 | O35: =AVERAGE(Fill!O17) -> -1.3 | P35: =AVERAGE(Fill!P17) -> 1.92 | Q35: =AVERAGE(Fill!Q17) -> -1.92 | R35: =AVERAGE(Fill!R17) -> 1.82 | S35: =AVERAGE(Fill!S17) -> -1.82 | T35: =AVERAGE(Fill!T17) -> 0.98 | U35: =AVERAGE(Fill!U17) -> -0.98 | V35: =SUM(SUMS!AE18) -> 0 | W35: =SUM(SUMS!AE19) -> 10.67 | X35: =SUM(SUMS!AE20) -> -10.67
D36: Poor sense of smell/ taste | F36: =AVERAGE(Fill!F19) -> 1.05 | G36: =AVERAGE(Fill!G19) -> -1.05 | H36: =AVERAGE(Fill!H19) -> 0.62 | I36: =AVERAGE(Fill!I19) -> -0.62 | J36: =AVERAGE(Fill!J19) -> 0.98 | K36: =AVERAGE(Fill!K19) -> -0.98 | L36: =AVERAGE(Fill!L19) -> 1.36 | M36: =AVERAGE(Fill!M19) -> -1.36 | N36: =AVERAGE(Fill!N19) -> 2 | O36: =AVERAGE(Fill!O19) -> -2 | P36: =AVERAGE(Fill!P19) -> 1.75 | Q36: =AVERAGE(Fill!Q19) -> -1.75 | R36: =AVERAGE(Fill!R19) -> 1.66 | S36: =AVERAGE(Fill!S19) -> -1.66 | T36: =AVERAGE(Fill!T19) -> 1.64 | U36: =AVERAGE(Fill!U19) -> -1.64 | V36: =SUM(SUMS!AF18) -> 0 | W36: =SUM(SUMS!AF19) -> 11.06 | X36: =SUM(SUMS!AF20) -> -11.06
D37: Water dependent | F37: =AVERAGE(Fill!F17) -> 1.23 | G37: =AVERAGE(Fill!G17) -> -1.23 | H37: =AVERAGE(Fill!H17) -> 1.01 | I37: =AVERAGE(Fill!I17) -> -1.01 | J37: =AVERAGE(Fill!J17) -> 1.35 | K37: =AVERAGE(Fill!K17) -> -1.35 | L37: =AVERAGE(Fill!L17) -> 1.06 | M37: =AVERAGE(Fill!M17) -> -1.06 | N37: =AVERAGE(Fill!N17) -> 1.3 | O37: =AVERAGE(Fill!O17) -> -1.3 | P37: =AVERAGE(Fill!P17) -> 1.92 | Q37: =AVERAGE(Fill!Q17) -> -1.92 | R37: =AVERAGE(Fill!R17) -> 1.82 | S37: =AVERAGE(Fill!S17) -> -1.82 | T37: =AVERAGE(Fill!T17) -> 0.98 | U37: =AVERAGE(Fill!U17) -> -0.98 | V37: =SUM(SUMS!AG18) -> 0 | W37: =SUM(SUMS!AG19) -> 10.67 | X37: =SUM(SUMS!AG20) -> -10.67
D38: Temporary - post hospital recovery | F38: =AVERAGE(Fill!F17) -> 1.23 | G38: =AVERAGE(Fill!G17) -> -1.23 | H38: =AVERAGE(Fill!H17) -> 1.01 | I38: =AVERAGE(Fill!I17) -> -1.01 | J38: =AVERAGE(Fill!J17) -> 1.35 | K38: =AVERAGE(Fill!K17) -> -1.35 | L38: =AVERAGE(Fill!L17) -> 1.06 | M38: =AVERAGE(Fill!M17) -> -1.06 | N38: =AVERAGE(Fill!N17) -> 1.3 | O38: =AVERAGE(Fill!O17) -> -1.3 | P38: =AVERAGE(Fill!P17) -> 1.92 | Q38: =AVERAGE(Fill!Q17) -> -1.92 | R38: =AVERAGE(Fill!R17) -> 1.82 | S38: =AVERAGE(Fill!S17) -> -1.82 | T38: =AVERAGE(Fill!T17) -> 0.98 | U38: =AVERAGE(Fill!U17) -> -0.98 | V38: =SUM(SUMS!AH18) -> 0 | W38: =SUM(SUMS!AH19) -> 10.67 | X38: =SUM(SUMS!AH20) -> -10.67
D39: Temporary - young adult householder (<18) | F39: =AVERAGE(Fill!F19) -> 1.05 | G39: =AVERAGE(Fill!G19) -> -1.05 | H39: =AVERAGE(Fill!H19) -> 0.62 | I39: =AVERAGE(Fill!I19) -> -0.62 | J39: =AVERAGE(Fill!J19) -> 0.98 | K39: =AVERAGE(Fill!K19) -> -0.98 | L39: =AVERAGE(Fill!L19) -> 1.36 | M39: =AVERAGE(Fill!M19) -> -1.36 | N39: =AVERAGE(Fill!N19) -> 2 | O39: =AVERAGE(Fill!O19) -> -2 | P39: =AVERAGE(Fill!P19) -> 1.75 | Q39: =AVERAGE(Fill!Q19) -> -1.75 | R39: =AVERAGE(Fill!R19) -> 1.66 | S39: =AVERAGE(Fill!S19) -> -1.66 | T39: =AVERAGE(Fill!T19) -> 1.64 | U39: =AVERAGE(Fill!U19) -> -1.64 | V39: =SUM(SUMS!AI18) -> 0 | W39: =SUM(SUMS!AI19) -> 11.06 | X39: =SUM(SUMS!AI20) -> -11.06
D40: Additional presence preferred | F40: =AVERAGE(Fill!F15) -> 1.03 | G40: =AVERAGE(Fill!G15) -> -1.03 | H40: =AVERAGE(Fill!H15) -> 0.63 | I40: =AVERAGE(Fill!I15) -> -0.63 | J40: =AVERAGE(Fill!J15) -> 0.95 | K40: =AVERAGE(Fill!K15) -> -0.95 | L40: =AVERAGE(Fill!L15) -> 1.16 | M40: =AVERAGE(Fill!M15) -> -1.16 | N40: =AVERAGE(Fill!N15) -> 1.34 | O40: =AVERAGE(Fill!O15) -> -1.34 | P40: =AVERAGE(Fill!P15) -> 1.44 | Q40: =AVERAGE(Fill!Q15) -> -1.44 | R40: =AVERAGE(Fill!R15) -> 1.51 | S40: =AVERAGE(Fill!S15) -> -1.51 | T40: =AVERAGE(Fill!T15) -> 0.89 | U40: =AVERAGE(Fill!U15) -> -0.89 | V40: =SUM(SUMS!AJ18) -> 0 | W40: =SUM(SUMS!AJ19) -> 8.95 | X40: =SUM(SUMS!AJ20) -> -8.95
D41: Resricted hand movement | F41: =AVERAGE(Fill!F17:F19) -> 1.316666667 | G41: =AVERAGE(Fill!G17:G19) -> -1.316666667 | H41: =AVERAGE(Fill!H17:H19) -> 0.82 | I41: =AVERAGE(Fill!I17:I19) -> -0.82 | J41: =AVERAGE(Fill!J17:J19) -> 1.11 | K41: =AVERAGE(Fill!K17:K19) -> -1.11 | L41: =AVERAGE(Fill!L17:L19) -> 1.363333333 | M41: =AVERAGE(Fill!M17:M19) -> -1.363333333 | N41: =AVERAGE(Fill!N17:N19) -> 1.766666667 | O41: =AVERAGE(Fill!O17:O19) -> -1.766666667 | P41: =AVERAGE(Fill!P17:P19) -> 1.89 | Q41: =AVERAGE(Fill!Q17:Q19) -> -1.89 | R41: =AVERAGE(Fill!R17:R19) -> 1.77 | S41: =AVERAGE(Fill!S17:S19) -> -1.77 | T41: =AVERAGE(Fill!T17:T19) -> 1.373333333 | U41: =AVERAGE(Fill!U17:U19) -> -1.373333333 | V41: =SUM(SUMS!AK18) -> 0 | W41: =SUM(SUMS!AK19) -> 11.41 | X41: =SUM(SUMS!AK20) -> -11.41
D42: Financial vulnerability | F42: =AVERAGE(Fill!F14) -> 1.49 | G42: =AVERAGE(Fill!G14) -> -1.49 | H42: =AVERAGE(Fill!H14) -> 0.77 | I42: =AVERAGE(Fill!I14) -> -0.77 | J42: =AVERAGE(Fill!J14) -> 1.3 | K42: =AVERAGE(Fill!K14) -> -1.3 | L42: =AVERAGE(Fill!L14) -> 0.95 | M42: =AVERAGE(Fill!M14) -> -0.95 | N42: =AVERAGE(Fill!N14) -> 1.17 | O42: =AVERAGE(Fill!O14) -> -1.17 | P42: =AVERAGE(Fill!P14) -> 1.41 | Q42: =AVERAGE(Fill!Q14) -> -1.41 | R42: =AVERAGE(Fill!R14) -> 1.24 | S42: =AVERAGE(Fill!S14) -> -1.24 | T42: =AVERAGE(Fill!T14) -> 0.92 | U42: =AVERAGE(Fill!U14) -> -0.92 | V42: =SUM(SUMS!AL18) -> 0 | W42: =SUM(SUMS!AL19) -> 9.25 | X42: =SUM(SUMS!AL20) -> -9.25
D43: When will the impact occur? | F43: =IF(SUMS!K38=1,SUMS!K39,IF(SUMS!K38=2,SUMS!K40,IF(SUMS!K38=3,"Not specified",0))) -> Not specified | G43: =IF(SUMS!K38=1,SUMS!K39,IF(SUMS!K38=2,SUMS!K40,IF(SUMS!K38=3,"Not specified",0))) -> Not specified | H43: =IF(SUMS!L38=1,SUMS!L39,IF(SUMS!L38=2,SUMS!L40,IF(SUMS!L38=3,"Not specified",0))) -> Not specified | I43: =IF(SUMS!L38=1,SUMS!L39,IF(SUMS!L38=2,SUMS!L40,IF(SUMS!L38=3,"Not specified",0))) -> Not specified | J43: =IF(SUMS!M38=1,SUMS!M39,IF(SUMS!M38=2,SUMS!M40,IF(SUMS!M38=3,"Not specified",0))) -> Not specified | K43: =IF(SUMS!M38=1,SUMS!M39,IF(SUMS!M38=2,SUMS!M40,IF(SUMS!M38=3,"Not specified",0))) -> Not specified | L43: =IF(SUMS!N38=1,SUMS!N39,IF(SUMS!N38=2,SUMS!N40,IF(SUMS!N38=3,"Not specified",0))) -> Not specified | M43: =IF(SUMS!N38=1,SUMS!N39,IF(SUMS!N38=2,SUMS!N40,IF(SUMS!N38=3,"Not specified",0))) -> Not specified | N43: =IF(SUMS!O38=1,SUMS!O39,IF(SUMS!O38=2,SUMS!O40,IF(SUMS!O38=3,"Not specified",0))) -> Not specified | O43: =IF(SUMS!O38=1,SUMS!O39,IF(SUMS!O38=2,SUMS!O40,IF(SUMS!O38=3,"Not specified",0))) -> Not specified | P43: =IF(SUMS!P38=1,SUMS!P39,IF(SUMS!P38=2,SUMS!P40,IF(SUMS!P38=3,"Not specified",0))) -> Not specified | Q43: =IF(SUMS!P38=1,SUMS!P39,IF(SUMS!P38=2,SUMS!P40,IF(SUMS!P38=3,"Not specified",0))) -> Not specified | R43: =IF(SUMS!Q38=1,SUMS!Q39,IF(SUMS!Q38=2,SUMS!Q40,IF(SUMS!Q38=3,"Not specified",0))) -> Not specified | S43: =IF(SUMS!Q38=1,SUMS!Q39,IF(SUMS!Q38=2,SUMS!Q40,IF(SUMS!Q38=3,"Not specified",0))) -> Not specified | T43: =IF(SUMS!R38=1,SUMS!R39,IF(SUMS!R38=2,SUMS!R40,IF(SUMS!R38=3,"Not specified",0))) -> Not specified | U43: =IF(SUMS!R38=1,SUMS!R39,IF(SUMS!R38=2,SUMS!R40,IF(SUMS!R38=3,"Not specified",0))) -> Not specified
D45: High positive: | E45: 1.5 < x
D46: Low positive: | E46: 0.5 < x < 1.5
D47: Neutral impact: | E47: -0.5 < x < 0.5
D48: Low negative: | E48: -1.5 < x < -0.5
D49: High negative: | E49: -x < -1.5
D50: Not relevant: | E50: N/A
C53: HIGH-LEVEL MITIGATIONS
C55: There is no need to take mitigation measures. Below are your answers to the questions and project impact scores.
C56: Project increases costs for households
C57: Where costs are expected to increase as a result of new ‘systems’ installed in the customer’s premises, stakeholders believe it is essential to ensure that customers in vulnerable situations can use these properly to avoid further bill impacts.
C58: Project hinders the exchange of information between networks and customers
C59: Engage different groups of vulnerable customers and their representatives to understand preferred channels, identify the optimal format and type of content. Gathering and communicating tailored information effectively is critical.
C60: Project hinders the network's understanding of customers' needs and the ability to address these
C61: Customers with communication disabilities are often underrepresented in data collected. Networks should ensure that provisions are made to engage these customers through their preferred method of communication.
C62: Project increases the need for, time taken and disruption cased by staff vists to customers' homes
C63: To date, stakeholders have not shared recommendations on how to mitigate this type of impact on customers in vulnerable situations.
C64: Project hinders health, safety and accessibility within or immediately around customers' homes
C65: To date, stakeholders have not shared recommendations on how to mitigate this type of impact on customers in vulnerable situations.
C66: Project hinders customers' ability to heat, cook, wash and use medical equipment during supply interruptions
C67: To date, stakeholders have not shared recommendations on how to mitigate this type of impact on customers in vulnerable situations.
C68: Project increases the occurrence and duration of supply interruptions
C69: To date, stakeholders have not shared recommendations on how to mitigate this type of impact on customers in vulnerable situations.
C70: Project increases the need for, time taken, and space required to work on trees and public and private roads in residential areas
C71: To date, stakeholders have not shared recommendations on how to mitigate this type of impact on customers in vulnerable situations.
C82: QUESTIONS AND ANSWERS
C83: Is the Project expected to:
C84: 1) focus on reserch only, and not deliver any immediate impacts on customers or the network?
C86: 2) impact customers directly or indirectly?
C88: 3) reduce or increase costs (such as bills, appliance maintenance, etc.) for households?
C90: =Questions!D12 -> Reasoning:
C91: 4) improve or hinder the exchange of information between networks and customers?
C93: =Questions!D14 -> Reasoning:
C94: 5) improve or hinder the network’s ability to cater to customer needs?
C96: =Questions!D16 -> Reasoning:
C97: 6) reduce or increase the need, time taken, and disruptions caused by staff visits to customers' homes?
C99: =Questions!D18 -> Reasoning:
C100: 7) improve or hinder customers' health, safety, and accessibility within or immediately around the home?
C102: =Questions!D20 -> Reasoning:
C103: 8) improve or hinder customers' ability to heat, cook, wash and use medical equipment during supply interruptions?
C105: =Questions!D22 -> Reasoning:
C106: 9) reduce or increase the occurrence and duration of supply interruptions?
C108: =Questions!D24 -> Reasoning:
C109: 10) reduce or increase the need for, time taken, and space required to work on trees and public and private roads in residential areas?
C111: =Questions!D26 -> Reasoning:
C114: OVERALL PROJECT SCORE
C115: Project Impact score
D116: Overall Project Score: | E116: =IFERROR(10*('Results Dashboard'!G12/('Results Dashboard'!G12+'Results Dashboard'!G13)),0) -> 5
C117: Relative Impact Score: | E117: =(SUMS!C35-SUMS!C37)/(SUMS!C36-SUMS!C37)*10 -> 5
C118: Positive Impact Score: | E118: =(SUMS!C38-SUMS!C40)/(SUMS!C36-SUMS!C40)*10 -> 10.07388626
C119: Negative Impact Score: | E119: =((SUMS!C39*-1)-SUMS!C40)/(SUMS!C36-SUMS!C40)*10 -> 10.07388626
C121: Customer Impact Calculator
C122: Situation of Vulnerability: | E122: =IF(SUMS!$K$44=1,SUMS!K45,IF(SUMS!$K$44=2,SUMS!K46,IF(SUMS!$K$44=3,SUMS!K47,IF(SUMS!$K$44=4,SUMS!K48,IF(SUMS!$K$44=5,SUMS!K49,IF(SUMS!$K$44=6,SUMS!K50,IF(SUMS!$K$44=7,SUMS!K51,IF(SUMS!$K$44=8,SUMS!K52,IF(SUMS!$K$44=9,SUMS!K53,IF(SUMS!$K$44=10,SUMS!K54,IF(SUMS!$K$44=11,SUMS!K55,IF(SUMS!$K$44=12,SUMS!K56,IF(SUMS!$K$44=13,SUMS!K57,IF(SUMS!$K$44=14,SUMS!K58,IF(SUMS!$K$44=15,SUMS!K59,IF(SUMS!$K$44=16,SUMS!K60,IF(SUMS!$K$44=17,SUMS!K61,IF(SUMS!$K$44=18,SUMS!K62,IF(SUMS!$K$44=19,SUMS!K63,IF(SUMS!$K$44=20,SUMS!K64,IF(SUMS!$K$44=21,SUMS!K65,IF(SUMS!$K$44=22,SUMS!K66,IF(SUMS!$K$44=23,SUMS!K67,IF(SUMS!$K$44=24,SUMS!K68, IF(SUMS!$K$44=25,SUMS!K69,IF(SUMS!$K$44=26,SUMS!K70,IF(SUMS!$K$44=27,SUMS!K71,IF(SUMS!$K$44=28,SUMS!K72,IF(SUMS!$K$44=29,"NOT SELECTED",0))))))))))))))))))))))))))))) -> NOT SELECTED
C123: Overall Impact Score: | E123: =IF(SUMS!$K$44=1,SUMS!K34,IF(SUMS!$K$44=2,SUMS!L34,IF(SUMS!$K$44=3,SUMS!M34,IF(SUMS!$K$44=4,SUMS!N34,IF(SUMS!$K$44=5,SUMS!O34,IF(SUMS!$K$44=6,SUMS!P34,IF(SUMS!$K$44=7,SUMS!Q34,IF(SUMS!$K$44=8,SUMS!R34,IF(SUMS!$K$44=9,SUMS!S34,IF(SUMS!$K$44=10,SUMS!T34,IF(SUMS!$K$44=11,SUMS!U34,IF(SUMS!$K$44=12,SUMS!V34,IF(SUMS!$K$44=13,SUMS!W34,IF(SUMS!$K$44=14,SUMS!X34,IF(SUMS!$K$44=15,SUMS!Y34,IF(SUMS!$K$44=16,SUMS!Z34,IF(SUMS!$K$44=17,SUMS!AA34,IF(SUMS!$K$44=18,SUMS!AB34,IF(SUMS!$K$44=19,SUMS!AC34,IF(SUMS!$K$44=20,SUMS!AD34,IF(SUMS!$K$44=21,SUMS!AE34,IF(SUMS!$K$44=22,SUMS!AF34,IF(SUMS!$K$44=23,SUMS!AG34,IF(SUMS!$K$44=24,SUMS!AH34, IF(SUMS!$K$44=25,SUMS!AI34,IF(SUMS!$K$44=26,SUMS!AJ34,IF(SUMS!$K$44=27,SUMS!AK34,IF(SUMS!$K$44=28,SUMS!AL34,IF(SUMS!$K$44=29,"",0))))))))))))))))))))))))))))) -> 

Sheet Spider Diagram (hidden)
F1: Impact on Household Costs | G1: Impact on Household Costs | H1: Understanding of information exchanged | I1: Understanding of information exchanged | J1: Understanding of individual needs | K1: Understanding of individual needs | L1: Disruption caused by staff visits to homes | M1: Disruption caused by staff visits to homes | N1: Health, Safety and Accessibility in/near homes | O1: Health, Safety and Accessibility in/near homes | P1: Satisfy essential needs during interruptions | Q1: Satisfy essential needs during interruptions | R1: Impact of supply interruptions | S1: Impact of supply interruptions | T1: Distruption on Public Roads | U1: Distruption on Public Roads
F2: =IF(AND(SUMS!$K$44=1,Questions!H34=TRUE),'Detailed Results'!$F$15,IF(AND(SUMS!$K$44=1,Questions!H34=FALSE),'Detailed Results'!$G$15,IF(AND(SUMS!$K$44=2,Questions!H34=TRUE),'Detailed Results'!$F$16,IF(AND(SUMS!$K$44=2,Questions!H34=FALSE),'Detailed Results'!$G$16,IF(AND(SUMS!$K$44=3,Questions!H34=TRUE),'Detailed Results'!$F$17,IF(AND(SUMS!$K$44=3,Questions!H34=FALSE),'Detailed Results'!$G$17,IF(AND(SUMS!$K$44=4,Questions!H34=TRUE),'Detailed Results'!$F$18,IF(AND(SUMS!$K$44=4,Questions!H34=FALSE),'Detailed Results'!$G$18,IF(AND(SUMS!$K$44=5,Questions!H34=TRUE),'Detailed Results'!$F$19,IF(AND(SUMS!$K$44=5,Questions!H34=FALSE),'Detailed Results'!$G$19,IF(AND(SUMS!$K$44=6,Questions!H34=TRUE),'Detailed Results'!$F$20,IF(AND(SUMS!$K$44=6,Questions!H34=FALSE),'Detailed Results'!$G$20,IF(AND(SUMS!$K$44=7,Questions!H34=TRUE),'Detailed Results'!$F$21,IF(AND(SUMS!$K$44=7,Questions!H34=FALSE),'Detailed Results'!$G$21,IF(AND(SUMS!$K$44=8,Questions!H34=TRUE),'Detailed Results'!$F$22,IF(AND(SUMS!$K$44=8,Questions!H34=FALSE),'Detailed Results'!$G$22,IF(AND(SUMS!$K$44=9,Questions!H34=TRUE),'Detailed Results'!$F$23,IF(AND(SUMS!$K$44=9,Questions!H34=FALSE),'Detailed Results'!$G$23,IF(AND(SUMS!$K$44=10,Questions!H34=TRUE),'Detailed Results'!$F$24,IF(AND(SUMS!$K$44=10,Questions!H34=FALSE),'Detailed Results'!$G$24,IF(AND(SUMS!$K$44=11,Questions!H34=TRUE),'Detailed Results'!$F$25,IF(AND(SUMS!$K$44=11,Questions!H34=FALSE),'Detailed Results'!$G$25,IF(AND(SUMS!$K$44=12,Questions!H34=TRUE),'Detailed Results'!$F$26,IF(AND(SUMS!$K$44=12,Questions!H34=FALSE),'Detailed Results'!$G$26,IF(AND(SUMS!$K$44=13,Questions!H34=TRUE),'Detailed Results'!$F$27,IF(AND(SUMS!$K$44=13,Questions!H34=FALSE),'Detailed Results'!$G$27,IF(AND(SUMS!$K$44=14,Questions!H34=TRUE),'Detailed Results'!$F$28,IF(AND(SUMS!$K$44=14,Questions!H34=FALSE),'Detailed Results'!$G$28,IF(AND(SUMS!$K$44=15,Questions!H34=TRUE),'Detailed Results'!$F$29,IF(AND(SUMS!$K$44=15,Questions!H34=FALSE),'Detailed Results'!$G$29,IF(AND(SUMS!$K$44=16,Questions!H34=TRUE),'Detailed Results'!$F$30,IF(AND(SUMS!$K$44=16,Questions!H34=FALSE),'Detailed Results'!$G$30,IF(AND(SUMS!$K$44=17,Questions!H34=TRUE),'Detailed Results'!$F$31,IF(AND(SUMS!$K$44=17,Questions!H34=FALSE),'Detailed Results'!$G$31,IF(AND(SUMS!$K$44=18,Questions!H34=TRUE),'Detailed Results'!$F$32,IF(AND(SUMS!$K$44=18,Questions!H34=FALSE),'Detailed Results'!$G$32,IF(AND(SUMS!$K$44=19,Questions!H34=TRUE),'Detailed Results'!$F$33,IF(AND(SUMS!$K$44=19,Questions!H34=FALSE),'Detailed Results'!$G$33,IF(AND(SUMS!$K$44=20,Questions!H34=TRUE),'Detailed Results'!$F$34,IF(AND(SUMS!$K$44=20,Questions!H34=FALSE),'Detailed Results'!$G$34,IF(AND(SUMS!$K$44=21,Questions!H34=TRUE),'Detailed Results'!$F$35,IF(AND(SUMS!$K$44=21,Questions!H34=FALSE),'Detailed Results'!$G$35,IF(AND(SUMS!$K$44=22,Questions!H34=TRUE),'Detailed Results'!$F$36,IF(AND(SUMS!$K$44=22,Questions!H34=FALSE),'Detailed Results'!$G$36,IF(AND(SUMS!$K$44=23,Questions!H34=TRUE),'Detailed Results'!$F$37,IF(AND(SUMS!$K$44=23,Questions!H34=FALSE),'Detailed Results'!$G$37,IF(AND(SUMS!$K$44=24,Questions!H34=TRUE),'Detailed Results'!$F$38,IF(AND(SUMS!$K$44=24,Questions!H34=FALSE),'Detailed Results'!$G$38,IF(AND(SUMS!$K$44=25,Questions!H34=TRUE),'Detailed Results'!$F$39,IF(AND(SUMS!$K$44=25,Questions!H34=FALSE),'Detailed Results'!$G$39,IF(AND(SUMS!$K$44=26,Questions!H34=TRUE),'Detailed Results'!$F$40,IF(AND(SUMS!$K$44=26,Questions!H34=FALSE),'Detailed Results'!$G$40,IF(AND(SUMS!$K$44=27,Questions!H34=TRUE),'Detailed Results'!$F$41,IF(AND(SUMS!$K$44=27,Questions!H34=FALSE),'Detailed Results'!$G$41,IF(AND(SUMS!$K$44=28,Questions!H34=TRUE),'Detailed Results'!$F$42,IF(AND(SUMS!$K$44=28,Questions!H34=FALSE),'Detailed Results'!$G$42,"")))))))))))))))))))))))))))))))))))))))))))))))))))))))) ->  | G2: -3 | H2: =IF(AND(SUMS!$K$44=1,Questions!H35=TRUE),'Detailed Results'!$H$15,IF(AND(SUMS!$K$44=1,Questions!H35=FALSE),'Detailed Results'!$I$15,IF(AND(SUMS!$K$44=2,Questions!H35=TRUE),'Detailed Results'!$H$16,IF(AND(SUMS!$K$44=2,Questions!H35=FALSE),'Detailed Results'!$I$16,IF(AND(SUMS!$K$44=3,Questions!H35=TRUE),'Detailed Results'!$H$17,IF(AND(SUMS!$K$44=3,Questions!H35=FALSE),'Detailed Results'!$I$17,IF(AND(SUMS!$K$44=4,Questions!H35=TRUE),'Detailed Results'!$H$18,IF(AND(SUMS!$K$44=4,Questions!H35=FALSE),'Detailed Results'!$I$18,IF(AND(SUMS!$K$44=5,Questions!H35=TRUE),'Detailed Results'!$H$19,IF(AND(SUMS!$K$44=5,Questions!H35=FALSE),'Detailed Results'!$I$19,IF(AND(SUMS!$K$44=6,Questions!H35=TRUE),'Detailed Results'!$H$20,IF(AND(SUMS!$K$44=6,Questions!H35=FALSE),'Detailed Results'!$I$20,IF(AND(SUMS!$K$44=7,Questions!H35=TRUE),'Detailed Results'!$H$21,IF(AND(SUMS!$K$44=7,Questions!H35=FALSE),'Detailed Results'!$I$21,IF(AND(SUMS!$K$44=8,Questions!H35=TRUE),'Detailed Results'!$H$22,IF(AND(SUMS!$K$44=8,Questions!H35=FALSE),'Detailed Results'!$I$22,IF(AND(SUMS!$K$44=9,Questions!H35=TRUE),'Detailed Results'!$H$23,IF(AND(SUMS!$K$44=9,Questions!H35=FALSE),'Detailed Results'!$I$23,IF(AND(SUMS!$K$44=10,Questions!H35=TRUE),'Detailed Results'!$H$24,IF(AND(SUMS!$K$44=10,Questions!H35=FALSE),'Detailed Results'!$I$24,IF(AND(SUMS!$K$44=11,Questions!H35=TRUE),'Detailed Results'!$H$25,IF(AND(SUMS!$K$44=11,Questions!H35=FALSE),'Detailed Results'!$I$25,IF(AND(SUMS!$K$44=12,Questions!H35=TRUE),'Detailed Results'!$H$26,IF(AND(SUMS!$K$44=12,Questions!H35=FALSE),'Detailed Results'!$I$26,IF(AND(SUMS!$K$44=13,Questions!H35=TRUE),'Detailed Results'!$H$27,IF(AND(SUMS!$K$44=13,Questions!H35=FALSE),'Detailed Results'!$I$27,IF(AND(SUMS!$K$44=14,Questions!H35=TRUE),'Detailed Results'!$H$28,IF(AND(SUMS!$K$44=14,Questions!H35=FALSE),'Detailed Results'!$I$28,IF(AND(SUMS!$K$44=15,Questions!H35=TRUE),'Detailed Results'!$H$29,IF(AND(SUMS!$K$44=15,Questions!H35=FALSE),'Detailed Results'!$I$29,IF(AND(SUMS!$K$44=16,Questions!H35=TRUE),'Detailed Results'!$H$30,IF(AND(SUMS!$K$44=16,Questions!H35=FALSE),'Detailed Results'!$I$30,IF(AND(SUMS!$K$44=17,Questions!H35=TRUE),'Detailed Results'!$H$31,IF(AND(SUMS!$K$44=17,Questions!H35=FALSE),'Detailed Results'!$I$31,IF(AND(SUMS!$K$44=18,Questions!H35=TRUE),'Detailed Results'!$H$32,IF(AND(SUMS!$K$44=18,Questions!H35=FALSE),'Detailed Results'!$I$32,IF(AND(SUMS!$K$44=19,Questions!H35=TRUE),'Detailed Results'!$H$33,IF(AND(SUMS!$K$44=19,Questions!H35=FALSE),'Detailed Results'!$I$33,IF(AND(SUMS!$K$44=20,Questions!H35=TRUE),'Detailed Results'!$H$34,IF(AND(SUMS!$K$44=20,Questions!H35=FALSE),'Detailed Results'!$I$34,IF(AND(SUMS!$K$44=21,Questions!H35=TRUE),'Detailed Results'!$H$35,IF(AND(SUMS!$K$44=21,Questions!H35=FALSE),'Detailed Results'!$I$35,IF(AND(SUMS!$K$44=22,Questions!H35=TRUE),'Detailed Results'!$H$36,IF(AND(SUMS!$K$44=22,Questions!H35=FALSE),'Detailed Results'!$I$36,IF(AND(SUMS!$K$44=23,Questions!H35=TRUE),'Detailed Results'!$H$37,IF(AND(SUMS!$K$44=23,Questions!H35=FALSE),'Detailed Results'!$I$37,IF(AND(SUMS!$K$44=24,Questions!H35=TRUE),'Detailed Results'!$H$38,IF(AND(SUMS!$K$44=24,Questions!H35=FALSE),'Detailed Results'!$I$38,IF(AND(SUMS!$K$44=25,Questions!H35=TRUE),'Detailed Results'!$H$39,IF(AND(SUMS!$K$44=25,Questions!H35=FALSE),'Detailed Results'!$I$39,IF(AND(SUMS!$K$44=26,Questions!H35=TRUE),'Detailed Results'!$H$40,IF(AND(SUMS!$K$44=26,Questions!H35=FALSE),'Detailed Results'!$I$40,IF(AND(SUMS!$K$44=27,Questions!H35=TRUE),'Detailed Results'!$H$41,IF(AND(SUMS!$K$44=27,Questions!H35=FALSE),'Detailed Results'!$I$41,IF(AND(SUMS!$K$44=28,Questions!H35=TRUE),'Detailed Results'!$H$42,IF(AND(SUMS!$K$44=28,Questions!H35=FALSE),'Detailed Results'!$I$42,"")))))))))))))))))))))))))))))))))))))))))))))))))))))))) ->  | I2: -3 | J2: =IF(AND(SUMS!$K$44=1,Questions!H36=TRUE),'Detailed Results'!$J$15,IF(AND(SUMS!$K$44=1,Questions!H36=FALSE),'Detailed Results'!$K$15,IF(AND(SUMS!$K$44=2,Questions!H36=TRUE),'Detailed Results'!$J$16,IF(AND(SUMS!$K$44=2,Questions!H36=FALSE),'Detailed Results'!$K$16,IF(AND(SUMS!$K$44=3,Questions!H36=TRUE),'Detailed Results'!$J$17,IF(AND(SUMS!$K$44=3,Questions!H36=FALSE),'Detailed Results'!$K$17,IF(AND(SUMS!$K$44=4,Questions!H36=TRUE),'Detailed Results'!$J$18,IF(AND(SUMS!$K$44=4,Questions!H36=FALSE),'Detailed Results'!$K$18,IF(AND(SUMS!$K$44=5,Questions!H36=TRUE),'Detailed Results'!$J$19,IF(AND(SUMS!$K$44=5,Questions!H36=FALSE),'Detailed Results'!$K$19,IF(AND(SUMS!$K$44=6,Questions!H36=TRUE),'Detailed Results'!$J$20,IF(AND(SUMS!$K$44=6,Questions!H36=FALSE),'Detailed Results'!$K$20,IF(AND(SUMS!$K$44=7,Questions!H36=TRUE),'Detailed Results'!$J$21,IF(AND(SUMS!$K$44=7,Questions!H36=FALSE),'Detailed Results'!$K$21,IF(AND(SUMS!$K$44=8,Questions!H36=TRUE),'Detailed Results'!$J$22,IF(AND(SUMS!$K$44=8,Questions!H36=FALSE),'Detailed Results'!$K$22,IF(AND(SUMS!$K$44=9,Questions!H36=TRUE),'Detailed Results'!$J$23,IF(AND(SUMS!$K$44=9,Questions!H36=FALSE),'Detailed Results'!$K$23,IF(AND(SUMS!$K$44=10,Questions!H36=TRUE),'Detailed Results'!$J$24,IF(AND(SUMS!$K$44=10,Questions!H36=FALSE),'Detailed Results'!$K$24,IF(AND(SUMS!$K$44=11,Questions!H36=TRUE),'Detailed Results'!$J$25,IF(AND(SUMS!$K$44=11,Questions!H36=FALSE),'Detailed Results'!$K$25,IF(AND(SUMS!$K$44=12,Questions!H36=TRUE),'Detailed Results'!$J$26,IF(AND(SUMS!$K$44=12,Questions!H36=FALSE),'Detailed Results'!$K$26,IF(AND(SUMS!$K$44=13,Questions!H36=TRUE),'Detailed Results'!$J$27,IF(AND(SUMS!$K$44=13,Questions!H36=FALSE),'Detailed Results'!$K$27,IF(AND(SUMS!$K$44=14,Questions!H36=TRUE),'Detailed Results'!$J$28,IF(AND(SUMS!$K$44=14,Questions!H36=FALSE),'Detailed Results'!$K$28,IF(AND(SUMS!$K$44=15,Questions!H36=TRUE),'Detailed Results'!$J$29,IF(AND(SUMS!$K$44=15,Questions!H36=FALSE),'Detailed Results'!$K$29,IF(AND(SUMS!$K$44=16,Questions!H36=TRUE),'Detailed Results'!$J$30,IF(AND(SUMS!$K$44=16,Questions!H36=FALSE),'Detailed Results'!$K$30,IF(AND(SUMS!$K$44=17,Questions!H36=TRUE),'Detailed Results'!$J$31,IF(AND(SUMS!$K$44=17,Questions!H36=FALSE),'Detailed Results'!$K$31,IF(AND(SUMS!$K$44=18,Questions!H36=TRUE),'Detailed Results'!$J$32,IF(AND(SUMS!$K$44=18,Questions!H36=FALSE),'Detailed Results'!$K$32,IF(AND(SUMS!$K$44=19,Questions!H36=TRUE),'Detailed Results'!$J$33,IF(AND(SUMS!$K$44=19,Questions!H36=FALSE),'Detailed Results'!$K$33,IF(AND(SUMS!$K$44=20,Questions!H36=TRUE),'Detailed Results'!$J$34,IF(AND(SUMS!$K$44=20,Questions!H36=FALSE),'Detailed Results'!$K$34,IF(AND(SUMS!$K$44=21,Questions!H36=TRUE),'Detailed Results'!$J$35,IF(AND(SUMS!$K$44=21,Questions!H36=FALSE),'Detailed Results'!$K$35,IF(AND(SUMS!$K$44=22,Questions!H36=TRUE),'Detailed Results'!$J$36,IF(AND(SUMS!$K$44=22,Questions!H36=FALSE),'Detailed Results'!$K$36,IF(AND(SUMS!$K$44=23,Questions!H36=TRUE),'Detailed Results'!$J$37,IF(AND(SUMS!$K$44=23,Questions!H36=FALSE),'Detailed Results'!$K$37,IF(AND(SUMS!$K$44=24,Questions!H36=TRUE),'Detailed Results'!$J$38,IF(AND(SUMS!$K$44=24,Questions!H36=FALSE),'Detailed Results'!$K$38,IF(AND(SUMS!$K$44=25,Questions!H36=TRUE),'Detailed Results'!$J$39,IF(AND(SUMS!$K$44=25,Questions!H36=FALSE),'Detailed Results'!$K$39,IF(AND(SUMS!$K$44=26,Questions!H36=TRUE),'Detailed Results'!$J$40,IF(AND(SUMS!$K$44=26,Questions!H36=FALSE),'Detailed Results'!$K$40,IF(AND(SUMS!$K$44=27,Questions!H36=TRUE),'Detailed Results'!$J$41,IF(AND(SUMS!$K$44=27,Questions!H36=FALSE),'Detailed Results'!$K$41,IF(AND(SUMS!$K$44=28,Questions!H36=TRUE),'Detailed Results'!$J$42,IF(AND(SUMS!$K$44=28,Questions!H36=FALSE),'Detailed Results'!$K$42,"")))))))))))))))))))))))))))))))))))))))))))))))))))))))) ->  | K2: -3 | L2: =IF(AND(SUMS!$K$44=1,Questions!H37=TRUE),'Detailed Results'!$L$15,IF(AND(SUMS!$K$44=1,Questions!H37=FALSE),'Detailed Results'!$M$15,IF(AND(SUMS!$K$44=2,Questions!H37=TRUE),'Detailed Results'!$L$16,IF(AND(SUMS!$K$44=2,Questions!H37=FALSE),'Detailed Results'!$M$16,IF(AND(SUMS!$K$44=3,Questions!H37=TRUE),'Detailed Results'!$L$17,IF(AND(SUMS!$K$44=3,Questions!H37=FALSE),'Detailed Results'!$M$17,IF(AND(SUMS!$K$44=4,Questions!H37=TRUE),'Detailed Results'!$L$18,IF(AND(SUMS!$K$44=4,Questions!H37=FALSE),'Detailed Results'!$M$18,IF(AND(SUMS!$K$44=5,Questions!H37=TRUE),'Detailed Results'!$L$19,IF(AND(SUMS!$K$44=5,Questions!H37=FALSE),'Detailed Results'!$M$19,IF(AND(SUMS!$K$44=6,Questions!H37=TRUE),'Detailed Results'!$L$20,IF(AND(SUMS!$K$44=6,Questions!H37=FALSE),'Detailed Results'!$M$20,IF(AND(SUMS!$K$44=7,Questions!H37=TRUE),'Detailed Results'!$L$21,IF(AND(SUMS!$K$44=7,Questions!H37=FALSE),'Detailed Results'!$M$21,IF(AND(SUMS!$K$44=8,Questions!H37=TRUE),'Detailed Results'!$L$22,IF(AND(SUMS!$K$44=8,Questions!H37=FALSE),'Detailed Results'!$M$22,IF(AND(SUMS!$K$44=9,Questions!H37=TRUE),'Detailed Results'!$L$23,IF(AND(SUMS!$K$44=9,Questions!H37=FALSE),'Detailed Results'!$M$23,IF(AND(SUMS!$K$44=10,Questions!H37=TRUE),'Detailed Results'!$L$24,IF(AND(SUMS!$K$44=10,Questions!H37=FALSE),'Detailed Results'!$M$24,IF(AND(SUMS!$K$44=11,Questions!H37=TRUE),'Detailed Results'!$L$25,IF(AND(SUMS!$K$44=11,Questions!H37=FALSE),'Detailed Results'!$M$25,IF(AND(SUMS!$K$44=12,Questions!H37=TRUE),'Detailed Results'!$L$26,IF(AND(SUMS!$K$44=12,Questions!H37=FALSE),'Detailed Results'!$M$26,IF(AND(SUMS!$K$44=13,Questions!H37=TRUE),'Detailed Results'!$L$27,IF(AND(SUMS!$K$44=13,Questions!H37=FALSE),'Detailed Results'!$M$27,IF(AND(SUMS!$K$44=14,Questions!H37=TRUE),'Detailed Results'!$L$28,IF(AND(SUMS!$K$44=14,Questions!H37=FALSE),'Detailed Results'!$M$28,IF(AND(SUMS!$K$44=15,Questions!H37=TRUE),'Detailed Results'!$L$29,IF(AND(SUMS!$K$44=15,Questions!H37=FALSE),'Detailed Results'!$M$29,IF(AND(SUMS!$K$44=16,Questions!H37=TRUE),'Detailed Results'!$L$30,IF(AND(SUMS!$K$44=16,Questions!H37=FALSE),'Detailed Results'!$M$30,IF(AND(SUMS!$K$44=17,Questions!H37=TRUE),'Detailed Results'!$L$31,IF(AND(SUMS!$K$44=17,Questions!H37=FALSE),'Detailed Results'!$M$31,IF(AND(SUMS!$K$44=18,Questions!H37=TRUE),'Detailed Results'!$L$32,IF(AND(SUMS!$K$44=18,Questions!H37=FALSE),'Detailed Results'!$M$32,IF(AND(SUMS!$K$44=19,Questions!H37=TRUE),'Detailed Results'!$L$33,IF(AND(SUMS!$K$44=19,Questions!H37=FALSE),'Detailed Results'!$M$33,IF(AND(SUMS!$K$44=20,Questions!H37=TRUE),'Detailed Results'!$L$34,IF(AND(SUMS!$K$44=20,Questions!H37=FALSE),'Detailed Results'!$M$34,IF(AND(SUMS!$K$44=21,Questions!H37=TRUE),'Detailed Results'!$L$35,IF(AND(SUMS!$K$44=21,Questions!H37=FALSE),'Detailed Results'!$M$35,IF(AND(SUMS!$K$44=22,Questions!H37=TRUE),'Detailed Results'!$L$36,IF(AND(SUMS!$K$44=22,Questions!H37=FALSE),'Detailed Results'!$M$36,IF(AND(SUMS!$K$44=23,Questions!H37=TRUE),'Detailed Results'!$L$37,IF(AND(SUMS!$K$44=23,Questions!H37=FALSE),'Detailed Results'!$M$37,IF(AND(SUMS!$K$44=24,Questions!H37=TRUE),'Detailed Results'!$L$38,IF(AND(SUMS!$K$44=24,Questions!H37=FALSE),'Detailed Results'!$M$38,IF(AND(SUMS!$K$44=25,Questions!H37=TRUE),'Detailed Results'!$L$39,IF(AND(SUMS!$K$44=25,Questions!H37=FALSE),'Detailed Results'!$M$39,IF(AND(SUMS!$K$44=26,Questions!H37=TRUE),'Detailed Results'!$L$40,IF(AND(SUMS!$K$44=26,Questions!H37=FALSE),'Detailed Results'!$M$40,IF(AND(SUMS!$K$44=27,Questions!H37=TRUE),'Detailed Results'!$L$41,IF(AND(SUMS!$K$44=27,Questions!H37=FALSE),'Detailed Results'!$M$41,IF(AND(SUMS!$K$44=28,Questions!H37=TRUE),'Detailed Results'!$L$42,IF(AND(SUMS!$K$44=28,Questions!H37=FALSE),'Detailed Results'!$M$42,"")))))))))))))))))))))))))))))))))))))))))))))))))))))))) ->  | M2: -3 | N2: =IF(AND(SUMS!$K$44=1,Questions!H38=TRUE),'Detailed Results'!$N$15,IF(AND(SUMS!$K$44=1,Questions!H38=FALSE),'Detailed Results'!$O$15,IF(AND(SUMS!$K$44=2,Questions!H38=TRUE),'Detailed Results'!$N$16,IF(AND(SUMS!$K$44=2,Questions!H38=FALSE),'Detailed Results'!$O$16,IF(AND(SUMS!$K$44=3,Questions!H38=TRUE),'Detailed Results'!$N$17,IF(AND(SUMS!$K$44=3,Questions!H38=FALSE),'Detailed Results'!$O$17,IF(AND(SUMS!$K$44=4,Questions!H38=TRUE),'Detailed Results'!$N$18,IF(AND(SUMS!$K$44=4,Questions!H38=FALSE),'Detailed Results'!$O$18,IF(AND(SUMS!$K$44=5,Questions!H38=TRUE),'Detailed Results'!$N$19,IF(AND(SUMS!$K$44=5,Questions!H38=FALSE),'Detailed Results'!$O$19,IF(AND(SUMS!$K$44=6,Questions!H38=TRUE),'Detailed Results'!$N$20,IF(AND(SUMS!$K$44=6,Questions!H38=FALSE),'Detailed Results'!$O$20,IF(AND(SUMS!$K$44=7,Questions!H38=TRUE),'Detailed Results'!$N$21,IF(AND(SUMS!$K$44=7,Questions!H38=FALSE),'Detailed Results'!$O$21,IF(AND(SUMS!$K$44=8,Questions!H38=TRUE),'Detailed Results'!$N$22,IF(AND(SUMS!$K$44=8,Questions!H38=FALSE),'Detailed Results'!$O$22,IF(AND(SUMS!$K$44=9,Questions!H38=TRUE),'Detailed Results'!$N$23,IF(AND(SUMS!$K$44=9,Questions!H38=FALSE),'Detailed Results'!$O$23,IF(AND(SUMS!$K$44=10,Questions!H38=TRUE),'Detailed Results'!$N$24,IF(AND(SUMS!$K$44=10,Questions!H38=FALSE),'Detailed Results'!$O$24,IF(AND(SUMS!$K$44=11,Questions!H38=TRUE),'Detailed Results'!$N$25,IF(AND(SUMS!$K$44=11,Questions!H38=FALSE),'Detailed Results'!$O$25,IF(AND(SUMS!$K$44=12,Questions!H38=TRUE),'Detailed Results'!$N$26,IF(AND(SUMS!$K$44=12,Questions!H38=FALSE),'Detailed Results'!$O$26,IF(AND(SUMS!$K$44=13,Questions!H38=TRUE),'Detailed Results'!$N$27,IF(AND(SUMS!$K$44=13,Questions!H38=FALSE),'Detailed Results'!$O$27,IF(AND(SUMS!$K$44=14,Questions!H38=TRUE),'Detailed Results'!$N$28,IF(AND(SUMS!$K$44=14,Questions!H38=FALSE),'Detailed Results'!$O$28,IF(AND(SUMS!$K$44=15,Questions!H38=TRUE),'Detailed Results'!$N$29,IF(AND(SUMS!$K$44=15,Questions!H38=FALSE),'Detailed Results'!$O$29,IF(AND(SUMS!$K$44=16,Questions!H38=TRUE),'Detailed Results'!$N$30,IF(AND(SUMS!$K$44=16,Questions!H38=FALSE),'Detailed Results'!$O$30,IF(AND(SUMS!$K$44=17,Questions!H38=TRUE),'Detailed Results'!$N$31,IF(AND(SUMS!$K$44=17,Questions!H38=FALSE),'Detailed Results'!$O$31,IF(AND(SUMS!$K$44=18,Questions!H38=TRUE),'Detailed Results'!$N$32,IF(AND(SUMS!$K$44=18,Questions!H38=FALSE),'Detailed Results'!$O$32,IF(AND(SUMS!$K$44=19,Questions!H38=TRUE),'Detailed Results'!$N$33,IF(AND(SUMS!$K$44=19,Questions!H38=FALSE),'Detailed Results'!$O$33,IF(AND(SUMS!$K$44=20,Questions!H38=TRUE),'Detailed Results'!$N$34,IF(AND(SUMS!$K$44=20,Questions!H38=FALSE),'Detailed Results'!$O$34,IF(AND(SUMS!$K$44=21,Questions!H38=TRUE),'Detailed Results'!$N$35,IF(AND(SUMS!$K$44=21,Questions!H38=FALSE),'Detailed Results'!$O$35,IF(AND(SUMS!$K$44=22,Questions!H38=TRUE),'Detailed Results'!$N$36,IF(AND(SUMS!$K$44=22,Questions!H38=FALSE),'Detailed Results'!$O$36,IF(AND(SUMS!$K$44=23,Questions!H38=TRUE),'Detailed Results'!$N$37,IF(AND(SUMS!$K$44=23,Questions!H38=FALSE),'Detailed Results'!$O$37,IF(AND(SUMS!$K$44=24,Questions!H38=TRUE),'Detailed Results'!$N$38,IF(AND(SUMS!$K$44=24,Questions!H38=FALSE),'Detailed Results'!$O$38,IF(AND(SUMS!$K$44=25,Questions!H38=TRUE),'Detailed Results'!$N$39,IF(AND(SUMS!$K$44=25,Questions!H38=FALSE),'Detailed Results'!$O$39,IF(AND(SUMS!$K$44=26,Questions!H38=TRUE),'Detailed Results'!$N$40,IF(AND(SUMS!$K$44=26,Questions!H38=FALSE),'Detailed Results'!$O$40,IF(AND(SUMS!$K$44=27,Questions!H38=TRUE),'Detailed Results'!$N$41,IF(AND(SUMS!$K$44=27,Questions!H38=FALSE),'Detailed Results'!$O$41,IF(AND(SUMS!$K$44=28,Questions!H38=TRUE),'Detailed Results'!$N$42,IF(AND(SUMS!$K$44=28,Questions!H38=FALSE),'Detailed Results'!$O$42,"")))))))))))))))))))))))))))))))))))))))))))))))))))))))) ->  | O2: -3 | P2: =IF(AND(SUMS!$K$44=1,Questions!H39=TRUE),'Detailed Results'!$P$15,IF(AND(SUMS!$K$44=1,Questions!H39=FALSE),'Detailed Results'!$Q$15,IF(AND(SUMS!$K$44=2,Questions!H39=TRUE),'Detailed Results'!$P$16,IF(AND(SUMS!$K$44=2,Questions!H39=FALSE),'Detailed Results'!$Q$16,IF(AND(SUMS!$K$44=3,Questions!H39=TRUE),'Detailed Results'!$P$17,IF(AND(SUMS!$K$44=3,Questions!H39=FALSE),'Detailed Results'!$Q$17,IF(AND(SUMS!$K$44=4,Questions!H39=TRUE),'Detailed Results'!$P$18,IF(AND(SUMS!$K$44=4,Questions!H39=FALSE),'Detailed Results'!$Q$18,IF(AND(SUMS!$K$44=5,Questions!H39=TRUE),'Detailed Results'!$P$19,IF(AND(SUMS!$K$44=5,Questions!H39=FALSE),'Detailed Results'!$Q$19,IF(AND(SUMS!$K$44=6,Questions!H39=TRUE),'Detailed Results'!$P$20,IF(AND(SUMS!$K$44=6,Questions!H39=FALSE),'Detailed Results'!$Q$20,IF(AND(SUMS!$K$44=7,Questions!H39=TRUE),'Detailed Results'!$P$21,IF(AND(SUMS!$K$44=7,Questions!H39=FALSE),'Detailed Results'!$Q$21,IF(AND(SUMS!$K$44=8,Questions!H39=TRUE),'Detailed Results'!$P$22,IF(AND(SUMS!$K$44=8,Questions!H39=FALSE),'Detailed Results'!$Q$22,IF(AND(SUMS!$K$44=9,Questions!H39=TRUE),'Detailed Results'!$P$23,IF(AND(SUMS!$K$44=9,Questions!H39=FALSE),'Detailed Results'!$Q$23,IF(AND(SUMS!$K$44=10,Questions!H39=TRUE),'Detailed Results'!$P$24,IF(AND(SUMS!$K$44=10,Questions!H39=FALSE),'Detailed Results'!$Q$24,IF(AND(SUMS!$K$44=11,Questions!H39=TRUE),'Detailed Results'!$P$25,IF(AND(SUMS!$K$44=11,Questions!H39=FALSE),'Detailed Results'!$Q$25,IF(AND(SUMS!$K$44=12,Questions!H39=TRUE),'Detailed Results'!$P$26,IF(AND(SUMS!$K$44=12,Questions!H39=FALSE),'Detailed Results'!$Q$26,IF(AND(SUMS!$K$44=13,Questions!H39=TRUE),'Detailed Results'!$P$27,IF(AND(SUMS!$K$44=13,Questions!H39=FALSE),'Detailed Results'!$Q$27,IF(AND(SUMS!$K$44=14,Questions!H39=TRUE),'Detailed Results'!$P$28,IF(AND(SUMS!$K$44=14,Questions!H39=FALSE),'Detailed Results'!$Q$28,IF(AND(SUMS!$K$44=15,Questions!H39=TRUE),'Detailed Results'!$P$29,IF(AND(SUMS!$K$44=15,Questions!H39=FALSE),'Detailed Results'!$Q$29,IF(AND(SUMS!$K$44=16,Questions!H39=TRUE),'Detailed Results'!$P$30,IF(AND(SUMS!$K$44=16,Questions!H39=FALSE),'Detailed Results'!$Q$30,IF(AND(SUMS!$K$44=17,Questions!H39=TRUE),'Detailed Results'!$P$31,IF(AND(SUMS!$K$44=17,Questions!H39=FALSE),'Detailed Results'!$Q$31,IF(AND(SUMS!$K$44=18,Questions!H39=TRUE),'Detailed Results'!$P$32,IF(AND(SUMS!$K$44=18,Questions!H39=FALSE),'Detailed Results'!$Q$32,IF(AND(SUMS!$K$44=19,Questions!H39=TRUE),'Detailed Results'!$P$33,IF(AND(SUMS!$K$44=19,Questions!H39=FALSE),'Detailed Results'!$Q$33,IF(AND(SUMS!$K$44=20,Questions!H39=TRUE),'Detailed Results'!$P$34,IF(AND(SUMS!$K$44=20,Questions!H39=FALSE),'Detailed Results'!$Q$34,IF(AND(SUMS!$K$44=21,Questions!H39=TRUE),'Detailed Results'!$P$35,IF(AND(SUMS!$K$44=21,Questions!H39=FALSE),'Detailed Results'!$Q$35,IF(AND(SUMS!$K$44=22,Questions!H39=TRUE),'Detailed Results'!$P$36,IF(AND(SUMS!$K$44=22,Questions!H39=FALSE),'Detailed Results'!$Q$36,IF(AND(SUMS!$K$44=23,Questions!H39=TRUE),'Detailed Results'!$P$37,IF(AND(SUMS!$K$44=23,Questions!H39=FALSE),'Detailed Results'!$Q$37,IF(AND(SUMS!$K$44=24,Questions!H39=TRUE),'Detailed Results'!$P$38,IF(AND(SUMS!$K$44=24,Questions!H39=FALSE),'Detailed Results'!$Q$38,IF(AND(SUMS!$K$44=25,Questions!H39=TRUE),'Detailed Results'!$P$39,IF(AND(SUMS!$K$44=25,Questions!H39=FALSE),'Detailed Results'!$Q$39,IF(AND(SUMS!$K$44=26,Questions!H39=TRUE),'Detailed Results'!$P$40,IF(AND(SUMS!$K$44=26,Questions!H39=FALSE),'Detailed Results'!$Q$40,IF(AND(SUMS!$K$44=27,Questions!H39=TRUE),'Detailed Results'!$P$41,IF(AND(SUMS!$K$44=27,Questions!H39=FALSE),'Detailed Results'!$Q$41,IF(AND(SUMS!$K$44=28,Questions!H39=TRUE),'Detailed Results'!$P$42,IF(AND(SUMS!$K$44=28,Questions!H39=FALSE),'Detailed Results'!$Q$42,"")))))))))))))))))))))))))))))))))))))))))))))))))))))))) ->  | Q2: -3 | R2: =IF(AND(SUMS!$K$44=1,Questions!H40<>TRUE),'Detailed Results'!$R$15,IF(AND(SUMS!$K$44=1,Questions!H40=FALSE),'Detailed Results'!$S$15,IF(AND(SUMS!$K$44=2,Questions!H40=TRUE),'Detailed Results'!$R$16,IF(AND(SUMS!$K$44=2,Questions!H40=FALSE),'Detailed Results'!$S$16,IF(AND(SUMS!$K$44=3,Questions!H40=TRUE),'Detailed Results'!$R$17,IF(AND(SUMS!$K$44=3,Questions!H40=FALSE),'Detailed Results'!$S$17,IF(AND(SUMS!$K$44=4,Questions!H40=TRUE),'Detailed Results'!$R$18,IF(AND(SUMS!$K$44=4,Questions!H40=FALSE),'Detailed Results'!$S$18,IF(AND(SUMS!$K$44=5,Questions!H40=TRUE),'Detailed Results'!$R$19,IF(AND(SUMS!$K$44=5,Questions!H40=FALSE),'Detailed Results'!$S$19,IF(AND(SUMS!$K$44=6,Questions!H40=TRUE),'Detailed Results'!$R$20,IF(AND(SUMS!$K$44=6,Questions!H40=FALSE),'Detailed Results'!$S$20,IF(AND(SUMS!$K$44=7,Questions!H40=TRUE),'Detailed Results'!$R$21,IF(AND(SUMS!$K$44=7,Questions!H40=FALSE),'Detailed Results'!$S$21,IF(AND(SUMS!$K$44=8,Questions!H40=TRUE),'Detailed Results'!$R$22,IF(AND(SUMS!$K$44=8,Questions!H40=FALSE),'Detailed Results'!$S$22,IF(AND(SUMS!$K$44=9,Questions!H40=TRUE),'Detailed Results'!$R$23,IF(AND(SUMS!$K$44=9,Questions!H40=FALSE),'Detailed Results'!$S$23,IF(AND(SUMS!$K$44=10,Questions!H40=TRUE),'Detailed Results'!$R$24,IF(AND(SUMS!$K$44=10,Questions!H40=FALSE),'Detailed Results'!$S$24,IF(AND(SUMS!$K$44=11,Questions!H40=TRUE),'Detailed Results'!$R$25,IF(AND(SUMS!$K$44=11,Questions!H40=FALSE),'Detailed Results'!$S$25,IF(AND(SUMS!$K$44=12,Questions!H40=TRUE),'Detailed Results'!$R$26,IF(AND(SUMS!$K$44=12,Questions!H40=FALSE),'Detailed Results'!$S$26,IF(AND(SUMS!$K$44=13,Questions!H40=TRUE),'Detailed Results'!$R$27,IF(AND(SUMS!$K$44=13,Questions!H40=FALSE),'Detailed Results'!$S$27,IF(AND(SUMS!$K$44=14,Questions!H40=TRUE),'Detailed Results'!$R$28,IF(AND(SUMS!$K$44=14,Questions!H40=FALSE),'Detailed Results'!$S$28,IF(AND(SUMS!$K$44=15,Questions!H40=TRUE),'Detailed Results'!$R$29,IF(AND(SUMS!$K$44=15,Questions!H40=FALSE),'Detailed Results'!$S$29,IF(AND(SUMS!$K$44=16,Questions!H40=TRUE),'Detailed Results'!$R$30,IF(AND(SUMS!$K$44=16,Questions!H40=FALSE),'Detailed Results'!$S$30,IF(AND(SUMS!$K$44=17,Questions!H40=TRUE),'Detailed Results'!$R$31,IF(AND(SUMS!$K$44=17,Questions!H40=FALSE),'Detailed Results'!$S$31,IF(AND(SUMS!$K$44=18,Questions!H40=TRUE),'Detailed Results'!$R$32,IF(AND(SUMS!$K$44=18,Questions!H40=FALSE),'Detailed Results'!$S$32,IF(AND(SUMS!$K$44=19,Questions!H40=TRUE),'Detailed Results'!$R$33,IF(AND(SUMS!$K$44=19,Questions!H40=FALSE),'Detailed Results'!$S$33,IF(AND(SUMS!$K$44=20,Questions!H40=TRUE),'Detailed Results'!$R$34,IF(AND(SUMS!$K$44=20,Questions!H40=FALSE),'Detailed Results'!$S$34,IF(AND(SUMS!$K$44=21,Questions!H40=TRUE),'Detailed Results'!$R$35,IF(AND(SUMS!$K$44=21,Questions!H40=FALSE),'Detailed Results'!$S$35,IF(AND(SUMS!$K$44=22,Questions!H40=TRUE),'Detailed Results'!$R$36,IF(AND(SUMS!$K$44=22,Questions!H40=FALSE),'Detailed Results'!$S$36,IF(AND(SUMS!$K$44=23,Questions!H40=TRUE),'Detailed Results'!$R$37,IF(AND(SUMS!$K$44=23,Questions!H40=FALSE),'Detailed Results'!$S$37,IF(AND(SUMS!$K$44=24,Questions!H40=TRUE),'Detailed Results'!$R$38,IF(AND(SUMS!$K$44=24,Questions!H40=FALSE),'Detailed Results'!$S$38,IF(AND(SUMS!$K$44=25,Questions!H40=TRUE),'Detailed Results'!$R$39,IF(AND(SUMS!$K$44=25,Questions!H40=FALSE),'Detailed Results'!$S$39,IF(AND(SUMS!$K$44=26,Questions!H40=TRUE),'Detailed Results'!$R$40,IF(AND(SUMS!$K$44=26,Questions!H40=FALSE),'Detailed Results'!$S$40,IF(AND(SUMS!$K$44=27,Questions!H40=TRUE),'Detailed Results'!$R$41,IF(AND(SUMS!$K$44=27,Questions!H40=FALSE),'Detailed Results'!$S$41,IF(AND(SUMS!$K$44=28,Questions!H40=TRUE),'Detailed Results'!$R$42,IF(AND(SUMS!$K$44=28,Questions!H40=FALSE),'Detailed Results'!$S$42,"")))))))))))))))))))))))))))))))))))))))))))))))))))))))) ->  | S2: -3 | T2: =IF(AND(SUMS!$K$44=1,Questions!H41=TRUE),'Detailed Results'!$T$15,IF(AND(SUMS!$K$44=1,Questions!H41=FALSE),'Detailed Results'!$U$15,IF(AND(SUMS!$K$44=2,Questions!H41=TRUE),'Detailed Results'!$T$16,IF(AND(SUMS!$K$44=2,Questions!H41=FALSE),'Detailed Results'!$U$16,IF(AND(SUMS!$K$44=3,Questions!H41=TRUE),'Detailed Results'!$T$17,IF(AND(SUMS!$K$44=3,Questions!H41=FALSE),'Detailed Results'!$U$17,IF(AND(SUMS!$K$44=4,Questions!H41=TRUE),'Detailed Results'!$T$18,IF(AND(SUMS!$K$44=4,Questions!H41=FALSE),'Detailed Results'!$U$18,IF(AND(SUMS!$K$44=5,Questions!H41=TRUE),'Detailed Results'!$T$19,IF(AND(SUMS!$K$44=5,Questions!H41=FALSE),'Detailed Results'!$U$19,IF(AND(SUMS!$K$44=6,Questions!H41=TRUE),'Detailed Results'!$T$20,IF(AND(SUMS!$K$44=6,Questions!H41=FALSE),'Detailed Results'!$U$20,IF(AND(SUMS!$K$44=7,Questions!H41=TRUE),'Detailed Results'!$T$21,IF(AND(SUMS!$K$44=7,Questions!H41=FALSE),'Detailed Results'!$U$21,IF(AND(SUMS!$K$44=8,Questions!H41=TRUE),'Detailed Results'!$T$22,IF(AND(SUMS!$K$44=8,Questions!H41=FALSE),'Detailed Results'!$U$22,IF(AND(SUMS!$K$44=9,Questions!H41=TRUE),'Detailed Results'!$T$23,IF(AND(SUMS!$K$44=9,Questions!H41=FALSE),'Detailed Results'!$U$23,IF(AND(SUMS!$K$44=10,Questions!H41=TRUE),'Detailed Results'!$T$24,IF(AND(SUMS!$K$44=10,Questions!H41=FALSE),'Detailed Results'!$U$24,IF(AND(SUMS!$K$44=11,Questions!H41=TRUE),'Detailed Results'!$T$25,IF(AND(SUMS!$K$44=11,Questions!H41=FALSE),'Detailed Results'!$U$25,IF(AND(SUMS!$K$44=12,Questions!H41=TRUE),'Detailed Results'!$T$26,IF(AND(SUMS!$K$44=12,Questions!H41=FALSE),'Detailed Results'!$U$26,IF(AND(SUMS!$K$44=13,Questions!H41=TRUE),'Detailed Results'!$T$27,IF(AND(SUMS!$K$44=13,Questions!H41=FALSE),'Detailed Results'!$U$27,IF(AND(SUMS!$K$44=14,Questions!H41=TRUE),'Detailed Results'!$T$28,IF(AND(SUMS!$K$44=14,Questions!H41=FALSE),'Detailed Results'!$U$28,IF(AND(SUMS!$K$44=15,Questions!H41=TRUE),'Detailed Results'!$T$29,IF(AND(SUMS!$K$44=15,Questions!H41=FALSE),'Detailed Results'!$U$29,IF(AND(SUMS!$K$44=16,Questions!H41=TRUE),'Detailed Results'!$T$30,IF(AND(SUMS!$K$44=16,Questions!H41=FALSE),'Detailed Results'!$U$30,IF(AND(SUMS!$K$44=17,Questions!H41=TRUE),'Detailed Results'!$T$31,IF(AND(SUMS!$K$44=17,Questions!H41=FALSE),'Detailed Results'!$U$31,IF(AND(SUMS!$K$44=18,Questions!H41=TRUE),'Detailed Results'!$T$32,IF(AND(SUMS!$K$44=18,Questions!H41=FALSE),'Detailed Results'!$U$32,IF(AND(SUMS!$K$44=19,Questions!H41=TRUE),'Detailed Results'!$T$33,IF(AND(SUMS!$K$44=19,Questions!H41=FALSE),'Detailed Results'!$U$33,IF(AND(SUMS!$K$44=20,Questions!H41=TRUE),'Detailed Results'!$T$34,IF(AND(SUMS!$K$44=20,Questions!H41=FALSE),'Detailed Results'!$U$34,IF(AND(SUMS!$K$44=21,Questions!H41=TRUE),'Detailed Results'!$T$35,IF(AND(SUMS!$K$44=21,Questions!H41=FALSE),'Detailed Results'!$U$35,IF(AND(SUMS!$K$44=22,Questions!H41=TRUE),'Detailed Results'!$T$36,IF(AND(SUMS!$K$44=22,Questions!H41=FALSE),'Detailed Results'!$U$36,IF(AND(SUMS!$K$44=23,Questions!H41=TRUE),'Detailed Results'!$T$37,IF(AND(SUMS!$K$44=23,Questions!H41=FALSE),'Detailed Results'!$U$37,IF(AND(SUMS!$K$44=24,Questions!H41=TRUE),'Detailed Results'!$T$38,IF(AND(SUMS!$K$44=24,Questions!H41=FALSE),'Detailed Results'!$U$38,IF(AND(SUMS!$K$44=25,Questions!H41=TRUE),'Detailed Results'!$T$39,IF(AND(SUMS!$K$44=25,Questions!H41=FALSE),'Detailed Results'!$U$39,IF(AND(SUMS!$K$44=26,Questions!H41=TRUE),'Detailed Results'!$T$40,IF(AND(SUMS!$K$44=26,Questions!H41=FALSE),'Detailed Results'!$U$40,IF(AND(SUMS!$K$44=27,Questions!H41=TRUE),'Detailed Results'!$T$41,IF(AND(SUMS!$K$44=27,Questions!H41=FALSE),'Detailed Results'!$U$41,IF(AND(SUMS!$K$44=28,Questions!H41=TRUE),'Detailed Results'!$T$42,IF(AND(SUMS!$K$44=28,Questions!H41=FALSE),'Detailed Results'!$U$42,"")))))))))))))))))))))))))))))))))))))))))))))))))))))))) ->  | U2: -3

Sheet SUMS (hidden)
B1: Flats | C1: Houses | D1: Owner Occupier | E1: Private Renter | F1: Social Renter | G1: Central Heating System | H1: Storage Heaters | I1: Room Heaters | J1: Limited digital literacy | K1: Blind | L1: Partially sighted | M1: Hearing Impairment (inc. Deaf) | N1: Speech impairment | O1: Physical impairment | P1: Developmental condition | Q1: Mental health | R1: Chronic/serious illness | S1: Dementia(s)/ Cognitive Impairment | T1: Nebuliser, and apnoea monitor | U1: Heart, lung and ventilator | V1: Dialysis, feeding pump and automated medicaiton | W1: Oxygen Concentrator / use | X1: Medicine refrigeration | Y1: Unable to communicate in English | Z1: Stair Lift, hoist, electric bed | AA1: Unable to answer door | AB1: MDE electric showering/ bathing | AC1: Pensionable age | AD1: Careline/telecare system | AE1: Families with children 5 or under | AF1: Poor sense of smell/ taste | AG1: Water dependent | AH1: Temporary - Post hospital recovery | AI1: Temporary - Young adult householder (<18) | AJ1: Additional presence preferred | AK1: Resricted hand movement | AL1: Financial Vulnerability
A2: Reduces Costs For Households | B2: =SUM(Fill!F5) -> 0.99 | C2: =SUM(Fill!F6) -> 0.96 | D2: =SUM(Fill!F7) -> 0.96 | E2: =SUM(Fill!F8) -> 0.96 | F2: =SUM(Fill!F9) -> 1.21 | G2: =SUM(Fill!F10) -> 1.04 | H2: =SUM(Fill!F11) -> 1.13 | I2: =SUM(Fill!F12) -> 1.04 | J2: =SUM(Fill!F13) -> 0.96 | K2: =AVERAGE(Fill!F15:F16,Fill!F18:F19) -> 1.315 | L2: =AVERAGE(Fill!F15:F16,Fill!F18:F19) -> 1.315 | M2: =AVERAGE(Fill!F15:F16,Fill!F19) -> 1.196666667 | N2: =AVERAGE(Fill!F15) -> 1.03 | O2: =AVERAGE(Fill!F18:F19) -> 1.36 | P2: =AVERAGE(Fill!F15:F19) -> 1.298 | Q2: =AVERAGE(Fill!F15:F19) -> 1.298 | R2: =AVERAGE(Fill!F17) -> 1.23 | S2: =AVERAGE(Fill!F15:F17,Fill!F19) -> 1.205 | T2: =AVERAGE(Fill!F17) -> 1.23 | U2: =AVERAGE(Fill!F17) -> 1.23 | V2: =AVERAGE(Fill!F17) -> 1.23 | W2: =AVERAGE(Fill!F17) -> 1.23 | X2: =AVERAGE(Fill!F17) -> 1.23 | Y2: =AVERAGE(Fill!F15:F16) -> 1.27 | Z2: =AVERAGE(Fill!F17:F19) -> 1.316666667 | AA2: =AVERAGE(Fill!F18:F19) -> 1.36 | AB2: =AVERAGE(Fill!F17) -> 1.23 | AC2: =AVERAGE(Fill!F17,Fill!F19) -> 1.14 | AD2: =AVERAGE(Fill!F15,Fill!F17,Fill!F19) -> 1.103333333 | AE2: =AVERAGE(Fill!F17) -> 1.23 | AF2: =AVERAGE(Fill!F19) -> 1.05 | AG2: =AVERAGE(Fill!F17) -> 1.23 | AH2: =AVERAGE(Fill!F17) -> 1.23 | AI2: =AVERAGE(Fill!F19) -> 1.05 | AJ2: =AVERAGE(Fill!F15) -> 1.03 | AK2: =AVERAGE(Fill!F17:F19) -> 1.316666667 | AL2: =AVERAGE(Fill!F14) -> 1.49
A3: Increases Costs For Households | B3: =SUM(Fill!G5) -> -0.99 | C3: =SUM(Fill!G6) -> -0.96 | D3: =SUM(Fill!G7) -> -0.96 | E3: =SUM(Fill!G8) -> -0.96 | F3: =SUM(Fill!G9) -> -1.21 | G3: =SUM(Fill!G10) -> -1.04 | H3: =SUM(Fill!G11) -> -1.13 | I3: =SUM(Fill!G12) -> -1.04 | J3: =SUM(Fill!G13) -> -0.96 | K3: =AVERAGE(Fill!G15:G16,Fill!G18:G19) -> -1.315 | L3: =AVERAGE(Fill!G15:G16,Fill!G18:G19) -> -1.315 | M3: =AVERAGE(Fill!G15:G16,Fill!G19) -> -1.196666667 | N3: =AVERAGE(Fill!G15) -> -1.03 | O3: =AVERAGE(Fill!G18:G19) -> -1.36 | P3: =AVERAGE(Fill!G15:G19) -> -1.298 | Q3: =AVERAGE(Fill!G15:G19) -> -1.298 | R3: =AVERAGE(Fill!G17) -> -1.23 | S3: =AVERAGE(Fill!G15:G17,Fill!G19) -> -1.205 | T3: =AVERAGE(Fill!G17) -> -1.23 | U3: =AVERAGE(Fill!G17) -> -1.23 | V3: =AVERAGE(Fill!G17) -> -1.23 | W3: =AVERAGE(Fill!G17) -> -1.23 | X3: =AVERAGE(Fill!G17) -> -1.23 | Y3: =AVERAGE(Fill!G15:G16) -> -1.27 | Z3: =AVERAGE(Fill!G17:G19) -> -1.316666667 | AA3: =AVERAGE(Fill!G18:G19) -> -1.36 | AB3: =AVERAGE(Fill!G17) -> -1.23 | AC3: =AVERAGE(Fill!G17,Fill!G19) -> -1.14 | AD3: =AVERAGE(Fill!G15,Fill!G17,Fill!G19) -> -1.103333333 | AE3: =AVERAGE(Fill!G17) -> -1.23 | AF3: =AVERAGE(Fill!G19) -> -1.05 | AG3: =AVERAGE(Fill!G17) -> -1.23 | AH3: =AVERAGE(Fill!G17) -> -1.23 | AI3: =AVERAGE(Fill!G19) -> -1.05 | AJ3: =AVERAGE(Fill!G15) -> -1.03 | AK3: =AVERAGE(Fill!G17:G19) -> -1.316666667 | AL3: =AVERAGE(Fill!G14) -> -1.49
A4: Improves the Nature, Quality, and Understanding of Information Between Networks and Customers | B4: =SUM(Fill!H5) -> 0.63 | C4: =SUM(Fill!H6) -> 0.63 | D4: =SUM(Fill!H7) -> 0.75 | E4: =SUM(Fill!H8) -> 0.67 | F4: =SUM(Fill!H9) -> 0.75 | G4: =SUM(Fill!H10) -> 0.67 | H4: =SUM(Fill!H11) -> 0.75 | I4: =SUM(Fill!H12) -> 0.67 | J4: =SUM(Fill!H13) -> 0.71 | K4: =AVERAGE(Fill!H15:H16,Fill!H18:H19) -> 0.925 | L4: =AVERAGE(Fill!H15:H16,Fill!H18:H19) -> 0.925 | M4: =AVERAGE(Fill!H15:H16,Fill!H19) -> 0.9566666667 | N4: =AVERAGE(Fill!H15) -> 0.63 | O4: =AVERAGE(Fill!H18:H19) -> 0.725 | P4: =AVERAGE(Fill!H15:H19) -> 0.942 | Q4: =AVERAGE(Fill!H15:H19) -> 0.942 | R4: =AVERAGE(Fill!H17) -> 1.01 | S4: =AVERAGE(Fill!H15:H17,Fill!H19) -> 0.97 | T4: =AVERAGE(Fill!H17) -> 1.01 | U4: =AVERAGE(Fill!H17) -> 1.01 | V4: =AVERAGE(Fill!H17) -> 1.01 | W4: =AVERAGE(Fill!H17) -> 1.01 | X4: =AVERAGE(Fill!H17) -> 1.01 | Y4: =AVERAGE(Fill!H15:H16) -> 1.125 | Z4: =AVERAGE(Fill!H17:H19) -> 0.82 | AA4: =AVERAGE(Fill!H18:H19) -> 0.725 | AB4: =AVERAGE(Fill!H17) -> 1.01 | AC4: =AVERAGE(Fill!H17,Fill!H19) -> 0.815 | AD4: =AVERAGE(Fill!H15,Fill!H17,Fill!H19) -> 0.7533333333 | AE4: =AVERAGE(Fill!H17) -> 1.01 | AF4: =AVERAGE(Fill!H19) -> 0.62 | AG4: =AVERAGE(Fill!H17) -> 1.01 | AH4: =AVERAGE(Fill!H17) -> 1.01 | AI4: =AVERAGE(Fill!H19) -> 0.62 | AJ4: =AVERAGE(Fill!H15) -> 0.63 | AK4: =AVERAGE(Fill!H17:H19) -> 0.82 | AL4: =AVERAGE(Fill!H14) -> 0.77
A5: Hinders the Nature, Quality, and Understanding of Information Between Networks and Customers | B5: =SUM(Fill!I5) -> -0.63 | C5: =SUM(Fill!I6) -> -0.63 | D5: =SUM(Fill!I7) -> -0.75 | E5: =SUM(Fill!I8) -> -0.67 | F5: =SUM(Fill!I9) -> -0.75 | G5: =SUM(Fill!I10) -> -0.67 | H5: =SUM(Fill!I11) -> -0.75 | I5: =SUM(Fill!I12) -> -0.67 | J5: =SUM(Fill!I13) -> -0.71 | K5: =AVERAGE(Fill!I15:I16,Fill!I18:I19) -> -0.925 | L5: =AVERAGE(Fill!I15:I16,Fill!I18:I19) -> -0.925 | M5: =AVERAGE(Fill!I15:I16,Fill!I19) -> -0.9566666667 | N5: =AVERAGE(Fill!I15) -> -0.63 | O5: =AVERAGE(Fill!I18:I19) -> -0.725 | P5: =AVERAGE(Fill!I15:I19) -> -0.942 | Q5: =AVERAGE(Fill!I15:I19) -> -0.942 | R5: =AVERAGE(Fill!I17) -> -1.01 | S5: =AVERAGE(Fill!I15:I17,Fill!I19) -> -0.97 | T5: =AVERAGE(Fill!I17) -> -1.01 | U5: =AVERAGE(Fill!I17) -> -1.01 | V5: =AVERAGE(Fill!I17) -> -1.01 | W5: =AVERAGE(Fill!I17) -> -1.01 | X5: =AVERAGE(Fill!I17) -> -1.01 | Y5: =AVERAGE(Fill!I15:I16) -> -1.125 | Z5: =AVERAGE(Fill!I17:I19) -> -0.82 | AA5: =AVERAGE(Fill!I18:I19) -> -0.725 | AB5: =AVERAGE(Fill!I17) -> -1.01 | AC5: =AVERAGE(Fill!I17,Fill!I19) -> -0.815 | AD5: =AVERAGE(Fill!I15,Fill!I17,Fill!I19) -> -0.7533333333 | AE5: =AVERAGE(Fill!I17) -> -1.01 | AF5: =AVERAGE(Fill!I19) -> -0.62 | AG5: =AVERAGE(Fill!I17) -> -1.01 | AH5: =AVERAGE(Fill!I17) -> -1.01 | AI5: =AVERAGE(Fill!I19) -> -0.62 | AJ5: =AVERAGE(Fill!I15) -> -0.63 | AK5: =AVERAGE(Fill!I17:I19) -> -0.82 | AL5: =AVERAGE(Fill!I14) -> -0.77
A6: Improves the Network’s Ability to Gather Data On, Understand, and Cater To Individual Customer Needs | B6: =SUM(Fill!J5) -> 0.76 | C6: =SUM(Fill!J6) -> 0.76 | D6: =SUM(Fill!J7) -> 0.8 | E6: =SUM(Fill!J8) -> 0.72 | F6: =SUM(Fill!J9) -> 0.88 | G6: =SUM(Fill!J10) -> 0.76 | H6: =SUM(Fill!J11) -> 0.72 | I6: =SUM(Fill!J12) -> 0.76 | J6: =SUM(Fill!J13) -> 0.76 | K6: =AVERAGE(Fill!J15:J16,Fill!J18:J19) -> 1.085 | L6: =AVERAGE(Fill!J15:J16,Fill!J18:J19) -> 1.085 | M6: =AVERAGE(Fill!J15:J16,Fill!J19) -> 1.113333333 | N6: =AVERAGE(Fill!J15) -> 0.95 | O6: =AVERAGE(Fill!J18:J19) -> 0.99 | P6: =AVERAGE(Fill!J15:J19) -> 1.138 | Q6: =AVERAGE(Fill!J15:J19) -> 1.138 | R6: =AVERAGE(Fill!J17) -> 1.35 | S6: =AVERAGE(Fill!J15:J17,Fill!J19) -> 1.1725 | T6: =AVERAGE(Fill!J17) -> 1.35 | U6: =AVERAGE(Fill!J17) -> 1.35 | V6: =AVERAGE(Fill!J17) -> 1.35 | W6: =AVERAGE(Fill!J17) -> 1.35 | X6: =AVERAGE(Fill!J17) -> 1.35 | Y6: =AVERAGE(Fill!J15:J16) -> 1.18 | Z6: =AVERAGE(Fill!J17:J19) -> 1.11 | AA6: =AVERAGE(Fill!J18:J19) -> 0.99 | AB6: =AVERAGE(Fill!J17) -> 1.35 | AC6: =AVERAGE(Fill!J17,Fill!J19) -> 1.165 | AD6: =AVERAGE(Fill!J15,Fill!J17,Fill!J19) -> 1.093333333 | AE6: =AVERAGE(Fill!J17) -> 1.35 | AF6: =AVERAGE(Fill!J19) -> 0.98 | AG6: =AVERAGE(Fill!J17) -> 1.35 | AH6: =AVERAGE(Fill!J17) -> 1.35 | AI6: =AVERAGE(Fill!J19) -> 0.98 | AJ6: =AVERAGE(Fill!J15) -> 0.95 | AK6: =AVERAGE(Fill!J17:J19) -> 1.11 | AL6: =AVERAGE(Fill!J14) -> 1.3
A7: Hinders the Network’s Ability to Gather Data On, Understand, and Cater To Individual Customer Needs | B7: =SUM(Fill!K5) -> -0.76 | C7: =SUM(Fill!K6) -> -0.76 | D7: =SUM(Fill!K7) -> -0.8 | E7: =SUM(Fill!K8) -> -0.72 | F7: =SUM(Fill!K9) -> -0.88 | G7: =SUM(Fill!K10) -> -0.76 | H7: =SUM(Fill!K11) -> -0.72 | I7: =SUM(Fill!K12) -> -0.76 | J7: =SUM(Fill!K13) -> -0.76 | K7: =AVERAGE(Fill!K15:K16,Fill!K18:K19) -> -1.085 | L7: =AVERAGE(Fill!K15:K16,Fill!K18:K19) -> -1.085 | M7: =AVERAGE(Fill!K15:K16,Fill!K19) -> -1.113333333 | N7: =AVERAGE(Fill!K15) -> -0.95 | O7: =AVERAGE(Fill!K18:K19) -> -0.99 | P7: =AVERAGE(Fill!K15:K19) -> -1.138 | Q7: =AVERAGE(Fill!K15:K19) -> -1.138 | R7: =AVERAGE(Fill!K17) -> -1.35 | S7: =AVERAGE(Fill!K15:K17,Fill!K19) -> -1.1725 | T7: =AVERAGE(Fill!K17) -> -1.35 | U7: =AVERAGE(Fill!K17) -> -1.35 | V7: =AVERAGE(Fill!K17) -> -1.35 | W7: =AVERAGE(Fill!K17) -> -1.35 | X7: =AVERAGE(Fill!K17) -> -1.35 | Y7: =AVERAGE(Fill!K15:K16) -> -1.18 | Z7: =AVERAGE(Fill!K17:K19) -> -1.11 | AA7: =AVERAGE(Fill!K18:K19) -> -0.99 | AB7: =AVERAGE(Fill!K17) -> -1.35 | AC7: =AVERAGE(Fill!K17,Fill!K19) -> -1.165 | AD7: =AVERAGE(Fill!K15,Fill!K17,Fill!K19) -> -1.093333333 | AE7: =AVERAGE(Fill!K17) -> -1.35 | AF7: =AVERAGE(Fill!K19) -> -0.98 | AG7: =AVERAGE(Fill!K17) -> -1.35 | AH7: =AVERAGE(Fill!K17) -> -1.35 | AI7: =AVERAGE(Fill!K19) -> -0.98 | AJ7: =AVERAGE(Fill!K15) -> -0.95 | AK7: =AVERAGE(Fill!K17:K19) -> -1.11 | AL7: =AVERAGE(Fill!K14) -> -1.3
A8: Reduces the Need, Time Taken, and Disruptions Caused by Staff Visits to Customer’s Homes | B8: =SUM(Fill!L5) -> 0.61 | C8: =SUM(Fill!L6) -> 0.87 | D8: =SUM(Fill!L7) -> 0.91 | E8: =SUM(Fill!L8) -> 0.65 | F8: =SUM(Fill!L9) -> 0.7 | G8: =SUM(Fill!L10) -> 0.74 | H8: =SUM(Fill!L11) -> 0.65 | I8: =SUM(Fill!L12) -> 0.65 | J8: =SUM(Fill!L13) -> 0 | K8: =AVERAGE(Fill!L15:L16,Fill!L18:L19) -> 1.325 | L8: =AVERAGE(Fill!L15:L16,Fill!L18:L19) -> 1.325 | M8: =AVERAGE(Fill!L15:L16,Fill!L19) -> 1.21 | N8: =AVERAGE(Fill!L15) -> 1.16 | O8: =AVERAGE(Fill!L18:L19) -> 1.515 | P8: =AVERAGE(Fill!L15:L19) -> 1.272 | Q8: =AVERAGE(Fill!L15:L19) -> 1.272 | R8: =AVERAGE(Fill!L17) -> 1.06 | S8: =AVERAGE(Fill!L15:L17,Fill!L19) -> 1.1725 | T8: =AVERAGE(Fill!L17) -> 1.06 | U8: =AVERAGE(Fill!L17) -> 1.06 | V8: =AVERAGE(Fill!L17) -> 1.06 | W8: =AVERAGE(Fill!L17) -> 1.06 | X8: =AVERAGE(Fill!L17) -> 1.06 | Y8: =AVERAGE(Fill!L15:L16) -> 1.135 | Z8: =AVERAGE(Fill!L17:L19) -> 1.363333333 | AA8: =AVERAGE(Fill!L18:L19) -> 1.515 | AB8: =AVERAGE(Fill!L17) -> 1.06 | AC8: =AVERAGE(Fill!L17,Fill!L19) -> 1.21 | AD8: =AVERAGE(Fill!L15,Fill!L17,Fill!L19) -> 1.193333333 | AE8: =AVERAGE(Fill!L17) -> 1.06 | AF8: =AVERAGE(Fill!L19) -> 1.36 | AG8: =AVERAGE(Fill!L17) -> 1.06 | AH8: =AVERAGE(Fill!L17) -> 1.06 | AI8: =AVERAGE(Fill!L19) -> 1.36 | AJ8: =AVERAGE(Fill!L15) -> 1.16 | AK8: =AVERAGE(Fill!L17:L19) -> 1.363333333 | AL8: =AVERAGE(Fill!L14) -> 0.95
A9: Increases the Need, Time Taken, and Disruptions Caused by Staff Visits to Customer’s Homes | B9: =SUM(Fill!M5) -> -0.61 | C9: =SUM(Fill!M6) -> -0.87 | D9: =SUM(Fill!M7) -> -0.91 | E9: =SUM(Fill!M8) -> -0.65 | F9: =SUM(Fill!M9) -> -0.7 | G9: =SUM(Fill!M10) -> -0.74 | H9: =SUM(Fill!M11) -> -0.65 | I9: =SUM(Fill!M12) -> -0.65 | J9: =SUM(Fill!M13) -> 0 | K9: =AVERAGE(Fill!M15:M16,Fill!M18:M19) -> -1.325 | L9: =AVERAGE(Fill!M15:M16,Fill!M18:M19) -> -1.325 | M9: =AVERAGE(Fill!M15:M16,Fill!M19) -> -1.21 | N9: =AVERAGE(Fill!M15) -> -1.16 | O9: =AVERAGE(Fill!M18:M19) -> -1.515 | P9: =AVERAGE(Fill!M15:M19) -> -1.272 | Q9: =AVERAGE(Fill!M15:M19) -> -1.272 | R9: =AVERAGE(Fill!M17) -> -1.06 | S9: =AVERAGE(Fill!M15:M17,Fill!M19) -> -1.1725 | T9: =AVERAGE(Fill!M17) -> -1.06 | U9: =AVERAGE(Fill!M17) -> -1.06 | V9: =AVERAGE(Fill!M17) -> -1.06 | W9: =AVERAGE(Fill!M17) -> -1.06 | X9: =AVERAGE(Fill!M17) -> -1.06 | Y9: =AVERAGE(Fill!M15:M16) -> -1.135 | Z9: =AVERAGE(Fill!M17:M19) -> -1.363333333 | AA9: =AVERAGE(Fill!M18:M19) -> -1.515 | AB9: =AVERAGE(Fill!M17) -> -1.06 | AC9: =AVERAGE(Fill!M17,Fill!M19) -> -1.21 | AD9: =AVERAGE(Fill!M15,Fill!M17,Fill!M19) -> -1.193333333 | AE9: =AVERAGE(Fill!M17) -> -1.06 | AF9: =AVERAGE(Fill!M19) -> -1.36 | AG9: =AVERAGE(Fill!M17) -> -1.06 | AH9: =AVERAGE(Fill!M17) -> -1.06 | AI9: =AVERAGE(Fill!M19) -> -1.36 | AJ9: =AVERAGE(Fill!M15) -> -1.16 | AK9: =AVERAGE(Fill!M17:M19) -> -1.363333333 | AL9: =AVERAGE(Fill!M14) -> -0.95
A10: Improves Customer's Health, Safety, and Accessibility Within or Immediately Around the Home | B10: =SUM(Fill!N5) -> 0.88 | C10: =SUM(Fill!N6) -> 0.88 | D10: =SUM(Fill!N7) -> 0 | E10: =SUM(Fill!N8) -> 0 | F10: =SUM(Fill!N9) -> 0 | G10: =SUM(Fill!N10) -> 0 | H10: =SUM(Fill!N11) -> 0 | I10: =SUM(Fill!N12) -> 0 | J10: =SUM(Fill!N13) -> 1.12 | K10: =AVERAGE(Fill!N15:N16,Fill!N18:N19) -> 1.725 | L10: =AVERAGE(Fill!N15:N16,Fill!N18:N19) -> 1.725 | M10: =AVERAGE(Fill!N15:N16,Fill!N19) -> 1.633333333 | N10: =AVERAGE(Fill!N15) -> 1.34 | O10: =AVERAGE(Fill!N18:N19) -> 2 | P10: =AVERAGE(Fill!N15:N19) -> 1.64 | Q10: =AVERAGE(Fill!N15:N19) -> 1.64 | R10: =AVERAGE(Fill!N17) -> 1.3 | S10: =AVERAGE(Fill!N15:N17,Fill!N19) -> 1.55 | T10: =AVERAGE(Fill!N17) -> 1.3 | U10: =AVERAGE(Fill!N17) -> 1.3 | V10: =AVERAGE(Fill!N17) -> 1.3 | W10: =AVERAGE(Fill!N17) -> 1.3 | X10: =AVERAGE(Fill!N17) -> 1.3 | Y10: =AVERAGE(Fill!N15:N16) -> 1.45 | Z10: =AVERAGE(Fill!N17:N19) -> 1.766666667 | AA10: =AVERAGE(Fill!N18:N19) -> 2 | AB10: =AVERAGE(Fill!N17) -> 1.3 | AC10: =AVERAGE(Fill!N17,Fill!N19) -> 1.65 | AD10: =AVERAGE(Fill!N15,Fill!N17,Fill!N19) -> 1.546666667 | AE10: =AVERAGE(Fill!N17) -> 1.3 | AF10: =AVERAGE(Fill!N19) -> 2 | AG10: =AVERAGE(Fill!N17) -> 1.3 | AH10: =AVERAGE(Fill!N17) -> 1.3 | AI10: =AVERAGE(Fill!N19) -> 2 | AJ10: =AVERAGE(Fill!N15) -> 1.34 | AK10: =AVERAGE(Fill!N17:N19) -> 1.766666667 | AL10: =AVERAGE(Fill!N14) -> 1.17
A11: Hinders Customer's Health, Safety, and Accessibility Within or Immediately Around the Home | B11: =SUM(Fill!O5) -> -0.88 | C11: =SUM(Fill!O6) -> -0.88 | D11: =SUM(Fill!O7) -> 0 | E11: =SUM(Fill!O8) -> 0 | F11: =SUM(Fill!O9) -> 0 | G11: =SUM(Fill!O10) -> 0 | H11: =SUM(Fill!O11) -> 0 | I11: =SUM(Fill!O12) -> 0 | J11: =SUM(Fill!O13) -> -1.12 | K11: =AVERAGE(Fill!O15:O16,Fill!O18:O19) -> -1.725 | L11: =AVERAGE(Fill!O15:O16,Fill!O18:O19) -> -1.725 | M11: =AVERAGE(Fill!O15:O16,Fill!O19) -> -1.633333333 | N11: =AVERAGE(Fill!O15) -> -1.34 | O11: =AVERAGE(Fill!O18:O19) -> -2 | P11: =AVERAGE(Fill!O15:O19) -> -1.64 | Q11: =AVERAGE(Fill!O15:O19) -> -1.64 | R11: =AVERAGE(Fill!O17) -> -1.3 | S11: =AVERAGE(Fill!O15:O17,Fill!O19) -> -1.55 | T11: =AVERAGE(Fill!O17) -> -1.3 | U11: =AVERAGE(Fill!O17) -> -1.3 | V11: =AVERAGE(Fill!O17) -> -1.3 | W11: =AVERAGE(Fill!O17) -> -1.3 | X11: =AVERAGE(Fill!O17) -> -1.3 | Y11: =AVERAGE(Fill!O15:O16) -> -1.45 | Z11: =AVERAGE(Fill!O17:O19) -> -1.766666667 | AA11: =AVERAGE(Fill!O18:O19) -> -2 | AB11: =AVERAGE(Fill!O17) -> -1.3 | AC11: =AVERAGE(Fill!O17,Fill!O19) -> -1.65 | AD11: =AVERAGE(Fill!O15,Fill!O17,Fill!O19) -> -1.546666667 | AE11: =AVERAGE(Fill!O17) -> -1.3 | AF11: =AVERAGE(Fill!O19) -> -2 | AG11: =AVERAGE(Fill!O17) -> -1.3 | AH11: =AVERAGE(Fill!O17) -> -1.3 | AI11: =AVERAGE(Fill!O19) -> -2 | AJ11: =AVERAGE(Fill!O15) -> -1.34 | AK11: =AVERAGE(Fill!O17:O19) -> -1.766666667 | AL11: =AVERAGE(Fill!O14) -> -1.17
A12: Improves Customer’s Ability to Heat, Cook, Wash and Use Medical Equipment During Supply Interruptions | B12: =SUM(Fill!P5) -> 1 | C12: =SUM(Fill!P6) -> 1 | D12: =SUM(Fill!P7) -> 0 | E12: =SUM(Fill!P8) -> 0 | F12: =SUM(Fill!P9) -> 0 | G12: =SUM(Fill!P10) -> 1.09 | H12: =SUM(Fill!P11) -> 1.08 | I12: =SUM(Fill!P12) -> 1.17 | J12: =SUM(Fill!P13) -> 1.04 | K12: =AVERAGE(Fill!P15:P16,Fill!P18:P19) -> 1.74 | L12: =AVERAGE(Fill!P15:P16,Fill!P18:P19) -> 1.74 | M12: =AVERAGE(Fill!P15:P16,Fill!P19) -> 1.653333333 | N12: =AVERAGE(Fill!P15) -> 1.44 | O12: =AVERAGE(Fill!P18:P19) -> 1.875 | P12: =AVERAGE(Fill!P15:P19) -> 1.776 | Q12: =AVERAGE(Fill!P15:P19) -> 1.776 | R12: =AVERAGE(Fill!P17) -> 1.92 | S12: =AVERAGE(Fill!P15:P17,Fill!P19) -> 1.72 | T12: =AVERAGE(Fill!P17) -> 1.92 | U12: =AVERAGE(Fill!P17) -> 1.92 | V12: =AVERAGE(Fill!P17) -> 1.92 | W12: =AVERAGE(Fill!P17) -> 1.92 | X12: =AVERAGE(Fill!P17) -> 1.92 | Y12: =AVERAGE(Fill!P15:P16) -> 1.605 | Z12: =AVERAGE(Fill!P17:P19) -> 1.89 | AA12: =AVERAGE(Fill!P18:P19) -> 1.875 | AB12: =AVERAGE(Fill!P17) -> 1.92 | AC12: =AVERAGE(Fill!P17,Fill!P19) -> 1.835 | AD12: =AVERAGE(Fill!P15,Fill!P17,Fill!P19) -> 1.703333333 | AE12: =AVERAGE(Fill!P17) -> 1.92 | AF12: =AVERAGE(Fill!P19) -> 1.75 | AG12: =AVERAGE(Fill!P17) -> 1.92 | AH12: =AVERAGE(Fill!P17) -> 1.92 | AI12: =AVERAGE(Fill!P19) -> 1.75 | AJ12: =AVERAGE(Fill!P15) -> 1.44 | AK12: =AVERAGE(Fill!P17:P19) -> 1.89 | AL12: =AVERAGE(Fill!P14) -> 1.41
A13: Hinders Customer’s Ability to Heat, Cook, Wash and Use Medical Equipment During Supply Interruptions | B13: =SUM(Fill!Q5) -> -1 | C13: =SUM(Fill!Q6) -> -1 | D13: =SUM(Fill!Q7) -> 0 | E13: =SUM(Fill!Q8) -> 0 | F13: =SUM(Fill!Q9) -> 0 | G13: =SUM(Fill!Q10) -> -1.09 | H13: =SUM(Fill!Q11) -> -1.08 | I13: =SUM(Fill!Q12) -> -1.17 | J13: =SUM(Fill!Q13) -> -1.04 | K13: =AVERAGE(Fill!Q15:Q16,Fill!Q18:Q19) -> -1.74 | L13: =AVERAGE(Fill!Q15:Q16,Fill!Q18:Q19) -> -1.74 | M13: =AVERAGE(Fill!Q15:Q16,Fill!Q19) -> -1.653333333 | N13: =AVERAGE(Fill!Q15) -> -1.44 | O13: =AVERAGE(Fill!Q18:Q19) -> -1.875 | P13: =AVERAGE(Fill!Q15:Q19) -> -1.776 | Q13: =AVERAGE(Fill!Q15:Q19) -> -1.776 | R13: =AVERAGE(Fill!Q17) -> -1.92 | S13: =AVERAGE(Fill!Q15:Q17,Fill!Q19) -> -1.72 | T13: =AVERAGE(Fill!Q17) -> -1.92 | U13: =AVERAGE(Fill!Q17) -> -1.92 | V13: =AVERAGE(Fill!Q17) -> -1.92 | W13: =AVERAGE(Fill!Q17) -> -1.92 | X13: =AVERAGE(Fill!Q17) -> -1.92 | Y13: =AVERAGE(Fill!Q15:Q16) -> -1.605 | Z13: =AVERAGE(Fill!Q17:Q19) -> -1.89 | AA13: =AVERAGE(Fill!Q18:Q19) -> -1.875 | AB13: =AVERAGE(Fill!Q17) -> -1.92 | AC13: =AVERAGE(Fill!Q17,Fill!Q19) -> -1.835 | AD13: =AVERAGE(Fill!Q15,Fill!Q17,Fill!Q19) -> -1.703333333 | AE13: =AVERAGE(Fill!Q17) -> -1.92 | AF13: =AVERAGE(Fill!Q19) -> -1.75 | AG13: =AVERAGE(Fill!Q17) -> -1.92 | AH13: =AVERAGE(Fill!Q17) -> -1.92 | AI13: =AVERAGE(Fill!Q19) -> -1.75 | AJ13: =AVERAGE(Fill!Q15) -> -1.44 | AK13: =AVERAGE(Fill!Q17:Q19) -> -1.89 | AL13: =AVERAGE(Fill!Q14) -> -1.41
A14: Reduces the Occurrence and Duration of Supply Interruptions | B14: =SUM(Fill!R5) -> 1 | C14: =SUM(Fill!R6) -> 0.92 | D14: =SUM(Fill!R7) -> 0 | E14: =SUM(Fill!R8) -> 0 | F14: =SUM(Fill!R9) -> 0 | G14: =SUM(Fill!R10) -> 1.17 | H14: =SUM(Fill!R11) -> 1.04 | I14: =SUM(Fill!R12) -> 1.08 | J14: =SUM(Fill!R13) -> 1.04 | K14: =AVERAGE(Fill!R15:R16,Fill!R18:R19) -> 1.735 | L14: =AVERAGE(Fill!R15:R16,Fill!R18:R19) -> 1.735 | M14: =AVERAGE(Fill!R15:R16,Fill!R19) -> 1.703333333 | N14: =AVERAGE(Fill!R15) -> 1.51 | O14: =AVERAGE(Fill!R18:R19) -> 1.745 | P14: =AVERAGE(Fill!R15:R19) -> 1.752 | Q14: =AVERAGE(Fill!R15:R19) -> 1.752 | R14: =AVERAGE(Fill!R17) -> 1.82 | S14: =AVERAGE(Fill!R15:R17,Fill!R19) -> 1.7325 | T14: =AVERAGE(Fill!R17) -> 1.82 | U14: =AVERAGE(Fill!R17) -> 1.82 | V14: =AVERAGE(Fill!R17) -> 1.82 | W14: =AVERAGE(Fill!R17) -> 1.82 | X14: =AVERAGE(Fill!R17) -> 1.82 | Y14: =AVERAGE(Fill!R15:R16) -> 1.725 | Z14: =AVERAGE(Fill!R17:R19) -> 1.77 | AA14: =AVERAGE(Fill!R18:R19) -> 1.745 | AB14: =AVERAGE(Fill!R17) -> 1.82 | AC14: =AVERAGE(Fill!R17,Fill!R19) -> 1.74 | AD14: =AVERAGE(Fill!R15,Fill!R17,Fill!R19) -> 1.663333333 | AE14: =AVERAGE(Fill!R17) -> 1.82 | AF14: =AVERAGE(Fill!R19) -> 1.66 | AG14: =AVERAGE(Fill!R17) -> 1.82 | AH14: =AVERAGE(Fill!R17) -> 1.82 | AI14: =AVERAGE(Fill!R19) -> 1.66 | AJ14: =AVERAGE(Fill!R15) -> 1.51 | AK14: =AVERAGE(Fill!R17:R19) -> 1.77 | AL14: =AVERAGE(Fill!R14) -> 1.24
A15: Increases the Occurrence and Duration of Supply Interruptions | B15: =SUM(Fill!S5) -> -1 | C15: =SUM(Fill!S6) -> -0.92 | D15: =SUM(Fill!S7) -> 0 | E15: =SUM(Fill!S8) -> 0 | F15: =SUM(Fill!S9) -> 0 | G15: =SUM(Fill!S10) -> -1.17 | H15: =SUM(Fill!S11) -> -1.04 | I15: =SUM(Fill!S12) -> -1.08 | J15: =SUM(Fill!S13) -> -1.04 | K15: =AVERAGE(Fill!S15:S16,Fill!S18:S19) -> -1.735 | L15: =AVERAGE(Fill!S15:S16,Fill!S18:S19) -> -1.735 | M15: =AVERAGE(Fill!S15:S16,Fill!S19) -> -1.703333333 | N15: =AVERAGE(Fill!S15) -> -1.51 | O15: =AVERAGE(Fill!S18:S19) -> -1.745 | P15: =AVERAGE(Fill!S15:S19) -> -1.752 | Q15: =AVERAGE(Fill!S15:S19) -> -1.752 | R15: =AVERAGE(Fill!S17) -> -1.82 | S15: =AVERAGE(Fill!S15:S17,Fill!S19) -> -1.7325 | T15: =AVERAGE(Fill!S17) -> -1.82 | U15: =AVERAGE(Fill!S17) -> -1.82 | V15: =AVERAGE(Fill!S17) -> -1.82 | W15: =AVERAGE(Fill!S17) -> -1.82 | X15: =AVERAGE(Fill!S17) -> -1.82 | Y15: =AVERAGE(Fill!S15:S16) -> -1.725 | Z15: =AVERAGE(Fill!S17:S19) -> -1.77 | AA15: =AVERAGE(Fill!S18:S19) -> -1.745 | AB15: =AVERAGE(Fill!S17) -> -1.82 | AC15: =AVERAGE(Fill!S17,Fill!S19) -> -1.74 | AD15: =AVERAGE(Fill!S15,Fill!S17,Fill!S19) -> -1.663333333 | AE15: =AVERAGE(Fill!S17) -> -1.82 | AF15: =AVERAGE(Fill!S19) -> -1.66 | AG15: =AVERAGE(Fill!S17) -> -1.82 | AH15: =AVERAGE(Fill!S17) -> -1.82 | AI15: =AVERAGE(Fill!S19) -> -1.66 | AJ15: =AVERAGE(Fill!S15) -> -1.51 | AK15: =AVERAGE(Fill!S17:S19) -> -1.77 | AL15: =AVERAGE(Fill!S14) -> -1.24
A16: Reduces the Need For, Time Taken, and Space Required To Excavate on Public and Private Roads in Residential Areas | B16: =SUM(Fill!T5) -> 0 | C16: =SUM(Fill!T6) -> 0 | D16: =SUM(Fill!T7) -> 0 | E16: =SUM(Fill!T8) -> 0 | F16: =SUM(Fill!T9) -> 0 | G16: =SUM(Fill!T10) -> 0 | H16: =SUM(Fill!T11) -> 0 | I16: =SUM(Fill!T12) -> 0 | J16: =SUM(Fill!T13) -> 0 | K16: =AVERAGE(Fill!T15:T16,Fill!T18:T19) -> 1.2825 | L16: =AVERAGE(Fill!T15:T16,Fill!T18:T19) -> 1.2825 | M16: =AVERAGE(Fill!T15:T16,Fill!T19) -> 1.21 | N16: =AVERAGE(Fill!T15) -> 0.89 | O16: =AVERAGE(Fill!T18:T19) -> 1.57 | P16: =AVERAGE(Fill!T15:T19) -> 1.222 | Q16: =AVERAGE(Fill!T15:T19) -> 1.222 | R16: =AVERAGE(Fill!T17) -> 0.98 | S16: =AVERAGE(Fill!T15:T17,Fill!T19) -> 1.1525 | T16: =AVERAGE(Fill!T17) -> 0.98 | U16: =AVERAGE(Fill!T17) -> 0.98 | V16: =AVERAGE(Fill!T17) -> 0.98 | W16: =AVERAGE(Fill!T17) -> 0.98 | X16: =AVERAGE(Fill!T17) -> 0.98 | Y16: =AVERAGE(Fill!T15:T16) -> 0.995 | Z16: =AVERAGE(Fill!T17:T19) -> 1.373333333 | AA16: =AVERAGE(Fill!T18:T19) -> 1.57 | AB16: =AVERAGE(Fill!T17) -> 0.98 | AC16: =AVERAGE(Fill!T17,Fill!T19) -> 1.31 | AD16: =AVERAGE(Fill!T15,Fill!T17,Fill!T19) -> 1.17 | AE16: =AVERAGE(Fill!T17) -> 0.98 | AF16: =AVERAGE(Fill!T19) -> 1.64 | AG16: =AVERAGE(Fill!T17) -> 0.98 | AH16: =AVERAGE(Fill!T17) -> 0.98 | AI16: =AVERAGE(Fill!T19) -> 1.64 | AJ16: =AVERAGE(Fill!T15) -> 0.89 | AK16: =AVERAGE(Fill!T17:T19) -> 1.373333333 | AL16: =AVERAGE(Fill!T14) -> 0.92
A17: Increases the Need For, Time Taken, and Space Required To Excavate on Public and Private Roads in Residential Areas | B17: =SUM(Fill!U5) -> 0 | C17: =SUM(Fill!U6) -> 0 | D17: =SUM(Fill!U7) -> 0 | E17: =SUM(Fill!U8) -> 0 | F17: =SUM(Fill!U9) -> 0 | G17: =SUM(Fill!U10) -> 0 | H17: =SUM(Fill!U11) -> 0 | I17: =SUM(Fill!U12) -> 0 | J17: =SUM(Fill!U13) -> 0 | K17: =AVERAGE(Fill!U15:U16,Fill!U18:U19) -> -1.2825 | L17: =AVERAGE(Fill!U15:U16,Fill!U18:U19) -> -1.2825 | M17: =AVERAGE(Fill!U15:U16,Fill!U19) -> -1.21 | N17: =AVERAGE(Fill!U15) -> -0.89 | O17: =AVERAGE(Fill!U18:U19) -> -1.57 | P17: =AVERAGE(Fill!U15:U19) -> -1.222 | Q17: =AVERAGE(Fill!U15:U19) -> -1.222 | R17: =AVERAGE(Fill!U17) -> -0.98 | S17: =AVERAGE(Fill!U15:U17,Fill!U19) -> -1.1525 | T17: =AVERAGE(Fill!U17) -> -0.98 | U17: =AVERAGE(Fill!U17) -> -0.98 | V17: =AVERAGE(Fill!U17) -> -0.98 | W17: =AVERAGE(Fill!U17) -> -0.98 | X17: =AVERAGE(Fill!U17) -> -0.98 | Y17: =AVERAGE(Fill!U15:U16) -> -0.995 | Z17: =AVERAGE(Fill!U17:U19) -> -1.373333333 | AA17: =AVERAGE(Fill!U18:U19) -> -1.57 | AB17: =AVERAGE(Fill!U17) -> -0.98 | AC17: =AVERAGE(Fill!U17,Fill!U19) -> -1.31 | AD17: =AVERAGE(Fill!U15,Fill!U17,Fill!U19) -> -1.17 | AE17: =AVERAGE(Fill!U17) -> -0.98 | AF17: =AVERAGE(Fill!U19) -> -1.64 | AG17: =AVERAGE(Fill!U17) -> -0.98 | AH17: =AVERAGE(Fill!U17) -> -0.98 | AI17: =AVERAGE(Fill!U19) -> -1.64 | AJ17: =AVERAGE(Fill!U15) -> -0.89 | AK17: =AVERAGE(Fill!U17:U19) -> -1.373333333 | AL17: =AVERAGE(Fill!U14) -> -0.92
A18: Overall Impact Score | B18: =SUBTOTAL(109, B2:B17) -> 0 | C18: =SUBTOTAL(109, C2:C17) -> 0 | D18: 0 | E18: 0 | F18: 0 | G18: 0 | H18: 0 | I18: 0 | J18: 0 | K18: 0 | L18: 0 | M18: 0 | N18: 0 | O18: 0 | P18: 0 | Q18: 0 | R18: 0 | S18: 0 | T18: 0 | U18: 0 | V18: 0 | W18: 0 | X18: 0 | Y18: 0 | Z18: 0 | AA18: 0 | AB18: 0 | AC18: 0 | AD18: 0 | AE18: 0 | AF18: 0 | AG18: 0 | AH18: 0 | AI18: 0 | AJ18: 0 | AK18: 0 | AL18: 0
A19: Overall Only Positive Score | B19: =SUBTOTAL(109, B2, B4, B6, B8, B10, B12, B14, B16) -> 5.87 | C19: =SUBTOTAL(109, C2, C4, C6, C8, C10, C12, C14, C16) -> 6.02 | D19: 3.42 | E19: 3 | F19: 3.54 | G19: 5.47 | H19: 5.37 | I19: 5.37 | J19: =SUBTOTAL(109, J2, J4, J6, J8, J10, J12, J14, J16) -> 5.63 | K19: =SUBTOTAL(109, K2, K4, K6, K8, K10, K12, K14, K16) -> 11.1325 | L19: =SUBTOTAL(109, L2, L4, L6, L8, L10, L12, L14, L16) -> 11.1325 | M19: =SUBTOTAL(109, M2, M4, M6, M8, M10, M12, M14, M16) -> 10.67666667 | N19: =SUBTOTAL(109, N2, N4, N6, N8, N10,N12, N14, N16) -> 8.95 | O19: =SUBTOTAL(109, O2, O4, O6, O8, O10, O12, O14, O16) -> 11.78 | P19: =SUBTOTAL(109, P2, P4, P6, P8, P10, P12, P14, P16) -> 11.04 | Q19: =SUBTOTAL(109, Q2, Q4, Q6, Q8, Q10, Q12, Q14, Q16) -> 11.04 | R19: 10.67 | S19: 10.675 | T19: 10.67 | U19: 10.67 | V19: 10.67 | W19: 10.67 | X19: 10.67 | Y19: 10.485 | Z19: 11.41 | AA19: =SUBTOTAL(109, AA2, AA4, AA6, AA8, AA10, AA12, AA14, AA16) -> 11.78 | AB19: 10.67 | AC19: 10.865 | AD19: 10.22666667 | AE19: 10.67 | AF19: 11.06 | AG19: 10.67 | AH19: 10.67 | AI19: 11.06 | AJ19: 8.95 | AK19: 11.41 | AL19: 9.25
A20: Overall Only Negative Score | B20: =SUBTOTAL(109, B3, B5, B7, B9, B11, B13, B15) -> -5.87 | C20: =SUBTOTAL(109, C3, C5, C7, C9, C11, C13, C15) -> -6.02 | D20: =SUBTOTAL(109, D3, D5, D7, D9) -> -3.42 | E20: =SUBTOTAL(109, E3, E5, E7, E9) -> -3 | F20: =SUBTOTAL(109, F3, F5, F7, F9) -> -3.54 | G20: =SUBTOTAL(109, G3, G5, G7, G9, G13, G15) -> -5.47 | H20: =SUBTOTAL(109, H3, H5, H7, H9, H13, H15) -> -5.37 | I20: =SUBTOTAL(109, I3, I5, I7, I9, I13, I15) -> -5.37 | J20: =SUBTOTAL(109, J3, J5, J7, J11, J13, J15) -> -5.63 | K20: =SUBTOTAL(109, K3, K5, K7, K9, K11, K13, K15, K17) -> -11.1325 | L20: =SUBTOTAL(109, L3, L5, L7, L9, L11, L13, L15, L17) -> -11.1325 | M20: =SUBTOTAL(109, M3, M5, M7, M9, M11, M13, M15, M17) -> -10.67666667 | N20: =SUBTOTAL(109, N3, N5, N7, N9,N11,N13, N15, N17) -> -8.95 | O20: =SUBTOTAL(109, O3, O5, O7, O9, O11, O13, O15, O17) -> -11.78 | P20: =SUBTOTAL(109, P3, P5, P7, P9, P11, P13, P15, P17) -> -11.04 | Q20: -11.04 | R20: -10.67 | S20: -10.675 | T20: -10.67 | U20: -10.67 | V20: -10.67 | W20: -10.67 | X20: -10.67 | Y20: -10.485 | Z20: -11.41 | AA20: =SUBTOTAL(109, AA3, AA5, AA7, AA9, AA11, AA13, AA15, AA17) -> -11.78 | AB20: -10.67 | AC20: -10.865 | AD20: -10.22666667 | AE20: -10.67 | AF20: -11.06 | AG20: -10.67 | AH20: -10.67 | AI20: -11.06 | AJ20: -8.95 | AK20: -11.41 | AL20: -9.25
A21: Average Impact Score | B21: =SUBTOTAL(101, B2:B17) -> 0 | C21: =SUBTOTAL(101, C2:C17) -> 0 | D21: 0 | E21: 0 | F21: 0 | G21: 0 | H21: 0 | I21: 0 | J21: 0 | K21: 0 | L21: 0 | M21: 0 | N21: 0 | O21: 0 | P21: 0 | Q21: 0 | R21: 0 | S21: 0 | T21: 0 | U21: 0 | V21: 0 | W21: 0 | X21: 0 | Y21: 0 | Z21: 0 | AA21: 0 | AB21: 0 | AC21: 0 | AD21: 0 | AE21: 0 | AF21: 0 | AG21: 0 | AH21: 0 | AI21: 0 | AJ21: 0 | AK21: 0 | AL21: 0
A22: Average Only Positive Score | B22: =SUBTOTAL(101, B2, B4, B6, B8, B10, B12, B14, B16) -> 0.73375 | C22: =SUBTOTAL(101, C2, C4, C6, C8, C10, C12, C14, C16) -> 0.7525 | D22: 0.4275 | E22: 0.375 | F22: 0.4425 | G22: 0.68375 | H22: 0.67125 | I22: 0.67125 | J22: 0.70375 | K22: 1.3915625 | L22: 1.3915625 | M22: 1.334583333 | N22: 1.11875 | O22: 1.4725 | P22: 1.38 | Q22: 1.38 | R22: 1.33375 | S22: 1.334375 | T22: 1.33375 | U22: 1.33375 | V22: 1.33375 | W22: 1.33375 | X22: 1.33375 | Y22: 1.310625 | Z22: 1.42625 | AA22: 1.4725 | AB22: 1.33375 | AC22: 1.358125 | AD22: 1.278333333 | AE22: 1.33375 | AF22: 1.3825 | AG22: 1.33375 | AH22: 1.33375 | AI22: 1.3825 | AJ22: 1.11875 | AK22: 1.42625 | AL22: 1.15625
A23: Average Only Negative Score | B23: =SUBTOTAL(101, B3, B5, B7, B9, B11, B13, B15) -> -0.8385714286 | C23: =SUBTOTAL(101, C3, C5, C7, C9, C11, C13, C15) -> -0.86 | D23: -0.4885714286 | E23: -0.4285714286 | F23: -0.5057142857 | G23: -0.7814285714 | H23: -0.7671428571 | I23: -0.7671428571 | J23: -0.8042857143 | K23: -1.407142857 | L23: -1.407142857 | M23: -1.352380952 | N23: -1.151428571 | O23: -1.458571429 | P23: -1.402571429 | Q23: -1.402571429 | R23: -1.384285714 | S23: -1.360357143 | T23: -1.384285714 | U23: -1.384285714 | V23: -1.384285714 | W23: -1.384285714 | X23: -1.384285714 | Y23: -1.355714286 | Z23: -1.433809524 | AA23: -1.458571429 | AB23: -1.384285714 | AC23: -1.365 | AD23: -1.293809524 | AE23: -1.384285714 | AF23: -1.345714286 | AG23: -1.384285714 | AH23: -1.384285714 | AI23: -1.345714286 | AJ23: -1.151428571 | AK23: -1.433809524 | AL23: -1.19
K25: Max | L25: Max | M25: Max | N25: Max | O25: Max | P25: Max | Q25: Max | R25: Max | S25: Max | T25: Max | U25: Max | V25: Max | W25: Max | X25: Max | Y25: Max | Z25: Max | AA25: Max | AB25: Max | AC25: Max | AD25: Max | AE25: Max | AF25: Max | AG25: Max | AH25: Max | AI25: Max | AJ25: Max | AK25: Max | AL25: Max
K26: 2 | L26: 2 | M26: 2 | N26: 2 | O26: 2 | P26: 2 | Q26: 2 | R26: 2 | S26: 2 | T26: 2 | U26: 2 | V26: 2 | W26: 2 | X26: 2 | Y26: 2 | Z26: 2 | AA26: 2 | AB26: 2 | AC26: 2 | AD26: 2 | AE26: 2 | AF26: 2 | AG26: 2 | AH26: 2 | AI26: 2 | AJ26: 2 | AK26: 2 | AL26: 2
K27: Min | L27: Min | M27: Min | N27: Min | O27: Min | P27: Min | Q27: Min | R27: Min | S27: Min | T27: Min | U27: Min | V27: Min | W27: Min | X27: Min | Y27: Min | Z27: Min | AA27: Min | AB27: Min | AC27: Min | AD27: Min | AE27: Min | AF27: Min | AG27: Min | AH27: Min | AI27: Min | AJ27: Min | AK27: Min | AL27: Min
K28: -2 | L28: -2 | M28: -2 | N28: -2 | O28: -2 | P28: -2 | Q28: -2 | R28: -2 | S28: -2 | T28: -2 | U28: -2 | V28: -2 | W28: -2 | X28: -2 | Y28: -2 | Z28: -2 | AA28: -2 | AB28: -2 | AC28: -2 | AD28: -2 | AE28: -2 | AF28: -2 | AG28: -2 | AH28: -2 | AI28: -2 | AJ28: -2 | AK28: -2 | AL28: -2
K29: Score | L29: Score | M29: Score | N29: Score | O29: Score | P29: Score | Q29: Score | R29: Score | S29: Score | T29: Score | U29: Score | V29: Score | W29: Score | X29: Score | Y29: Score | Z29: Score | AA29: Score | AB29: Score | AC29: Score | AD29: Score | AE29: Score | AF29: Score | AG29: Score | AH29: Score | AI29: Score | AJ29: Score | AK29: Score | AL29: Score
K30: =K21 -> 0 | L30: =L21 -> 0 | M30: 0 | N30: 0 | O30: 0 | P30: 0 | Q30: 0 | R30: 0 | S30: 0 | T30: 0 | U30: 0 | V30: 0 | W30: 0 | X30: 0 | Y30: 0 | Z30: 0 | AA30: 0 | AB30: 0 | AC30: 0 | AD30: 0 | AE30: 0 | AF30: 0 | AG30: 0 | AH30: 0 | AI30: 0 | AJ30: 0 | AK30: 0 | AL30: 0
K31: Equation | L31: Equation | M31: Equation | N31: Equation | O31: Equation | P31: Equation | Q31: Equation | R31: Equation | S31: Equation | T31: Equation | U31: Equation | V31: Equation | W31: Equation | X31: Equation | Y31: Equation | Z31: Equation | AA31: Equation | AB31: Equation | AC31: Equation | AD31: Equation | AE31: Equation | AF31: Equation | AG31: Equation | AH31: Equation | AI31: Equation | AJ31: Equation | AK31: Equation | AL31: Equation
K32: =(K30-K28)/(K26-K28)*10 -> 5 | L32: =(L30-L28)/(L26-L28)*10 -> 5 | M32: 5 | N32: 5 | O32: 5 | P32: 5 | Q32: 5 | R32: 5 | S32: 5 | T32: 5 | U32: 5 | V32: 5 | W32: 5 | X32: 5 | Y32: 5 | Z32: 5 | AA32: 5 | AB32: 5 | AC32: 5 | AD32: 5 | AE32: 5 | AF32: 5 | AG32: 5 | AH32: 5 | AI32: 5 | AJ32: 5 | AK32: 5 | AL32: 5
K33: W Value | L33: W Value | M33: W Value | N33: W Value | O33: W Value | P33: W Value | Q33: W Value | R33: W Value | S33: W Value | T33: W Value | U33: W Value | V33: W Value | W33: W Value | X33: W Value | Y33: W Value | Z33: W Value | AA33: W Value | AB33: W Value | AC33: W Value | AD33: W Value | AE33: W Value | AF33: W Value | AG33: W Value | AH33: W Value | AI33: W Value | AJ33: W Value | AK33: W Value | AL33: W Value
K34: =IF(K32>=8.75,"HIGH POSITIVE",IF(K32>=6.25,"LOW POSITIVE",IF(K32>=3.75,"NEUTRAL IMPACT", IF(K32>=1.25,"LOW NEGATIVE",IF(K32>=0,"HIGH NEGATIVE","0"))))) -> NEUTRAL IMPACT | L34: =IF(L32>=8.75,"HIGH POSITIVE",IF(L32>=6.25,"LOW POSITIVE",IF(L32>=3.75,"NEUTRAL IMPACT", IF(L32>=1.25,"LOW NEGATIVE",IF(L32>=0,"HIGH NEGATIVE","0"))))) -> NEUTRAL IMPACT | M34: NEUTRAL IMPACT | N34: NEUTRAL IMPACT | O34: NEUTRAL IMPACT | P34: NEUTRAL IMPACT | Q34: NEUTRAL IMPACT | R34: NEUTRAL IMPACT | S34: NEUTRAL IMPACT | T34: NEUTRAL IMPACT | U34: NEUTRAL IMPACT | V34: NEUTRAL IMPACT | W34: NEUTRAL IMPACT | X34: NEUTRAL IMPACT | Y34: NEUTRAL IMPACT | Z34: NEUTRAL IMPACT | AA34: NEUTRAL IMPACT | AB34: NEUTRAL IMPACT | AC34: NEUTRAL IMPACT | AD34: NEUTRAL IMPACT | AE34: NEUTRAL IMPACT | AF34: NEUTRAL IMPACT | AG34: NEUTRAL IMPACT | AH34: NEUTRAL IMPACT | AI34: NEUTRAL IMPACT | AJ34: NEUTRAL IMPACT | AK34: NEUTRAL IMPACT | AL34: NEUTRAL IMPACT
B35: Score | C35: =SUM('Detailed Results'!V6:V42) -> 0
B36: Max | C36: 340.7953241 | K36: SHORT/LONG VALUES DROP DOWN
B37: Min | C37: -340.7953241 | K37: Q3 | L37: Q4 | M37: Q5 | N37: Q6 | O37: Q7 | P37: Q8 | Q37: Q9 | R37: Q10
B38: P Score | C38: =SUM('Detailed Results'!W6:W42) -> 343.3133333 | K38: 3 | L38: 3 | M38: 3 | N38: 3 | O38: 3 | P38: 3 | Q38: 3 | R38: 3
B39: N Score | C39: =SUM('Detailed Results'!X6:X42) -> -343.3133333 | K39: Short term | L39: Short term | M39: Short term | N39: Short term | O39: Short term | P39: Short term | Q39: Short term | R39: Short term
B40: PN min | C40: 0 | K40: Long term | L40: Long term | M40: Long term | N40: Long term | O40: Long term | P40: Long term | Q40: Long term | R40: Long term
K42: VULNERABILITY DROP DOWN
K43: Value
K44: 29
K45: Blind
K46: Partially sighted
K47: Hearing impairment (inc. deaf)
K48: Speech impairment
K49: Physical impairment
K50: Developmental condition
K51: Mental health
K52: Chronic/serious illness
K53: Dementia(s)/ cognitive impairment
K54: Nebuliser, and apnoea monitor
K55: Heart, lung and ventilator
K56: Dialysis, feeding pump and automated medicaiton
K57: Oxygen concentrator / use
K58: Medicine refrigeration
K59: Unable to communicate in English
K60: Stair lift, hoist, electric bed
K61: Unable to answer door
K62: MDE electric showering/ bathing
K63: Pensionable age
K64: Careline/telecare system
K65: Families with children 5 or under
K66: Poor sense of smell/ taste
K67: Water dependent
K68: Temporary - post hospital recovery
K69: Temporary - young adult householder (<18)
K70: Additional presence preferred
K71: Resricted hand movement
K72: Financial vulnerability

Sheet Fill (hidden)
D4: Types of Impact | F4: Impacts Costs (Any Cost Including Network Costs, Bills, Maintenance of Appliances, Etc..) For Households | G4: Impacts Costs (Any Cost Including Network Costs, Bills, Maintenance of Appliances, Etc..) For Households | H4: Impacts the Nature, Quality, and Understanding of Information Between Networks and Customers | I4: Impacts the Nature, Quality, and Understanding of Information Between Networks and Customers | J4: Impacts the Network’s Ability to Gather Data On, Understand, and Cater To Individual Customer Needs | K4: Impacts the Network’s Ability to Gather Data On, Understand, and Cater To Individual Customer Needs | L4: Impacts the Need, Time Taken, and Disruptions (e.g., Drilling, Scaffolding) Caused by Staff Visits to Customer’s Homes | M4: Impacts the Need, Time Taken, and Disruptions (e.g., Drilling, Scaffolding) Caused by Staff Visits to Customer’s Homes | N4: Impacts Health, Safety, and Accessibility Within or Immediately Around the Home | O4: Impacts Health, Safety, and Accessibility Within or Immediately Around the Home | P4: Impacts Customer’s Ability to Heat, Cook, Wash and Use Medical Equipment During Supply Interruptions | Q4: Impacts Customer’s Ability to Heat, Cook, Wash and Use Medical Equipment During Supply Interruptions | R4: Impacts the Occurrence and Duration of Supply Interruptions | S4: Impacts the Occurrence and Duration of Supply Interruptions | T4: Impacts the Need For, Time Taken, and Space Required (e.g., Roadblocks and Obstacles on Public Roads and Walkways) To Excavate on Public and Private Roads in Residential Areas | U4: Impacts the Need For, Time Taken, and Space Required (e.g., Roadblocks and Obstacles on Public Roads and Walkways) To Excavate on Public and Private Roads in Residential Areas
C5: Situational Circumstances | D5: Dwelling | E5: Flats | F5: 0.99 | G5: =F5*-1 -> -0.99 | H5: 0.63 | I5: =H5*-1 -> -0.63 | J5: 0.76 | K5: =J5*-1 -> -0.76 | L5: 0.61 | M5: =L5*-1 -> -0.61 | N5: 0.88 | O5: =N5*-1 -> -0.88 | P5: 1 | Q5: =P5*-1 -> -1 | R5: 1 | S5: =R5*-1 -> -1 | T5: N/A | U5: N/A
E6: Houses | F6: 0.96 | G6: =F6*-1 -> -0.96 | H6: 0.63 | I6: =H6*-1 -> -0.63 | J6: 0.76 | K6: =J6*-1 -> -0.76 | L6: 0.87 | M6: =L6*-1 -> -0.87 | N6: 0.88 | O6: =N6*-1 -> -0.88 | P6: 1 | Q6: =P6*-1 -> -1 | R6: 0.92 | S6: =R6*-1 -> -0.92 | T6: N/A | U6: N/A
D7: Tenure | E7: Owner Occupier | F7: 0.96 | G7: -0.96 | H7: 0.75 | I7: -0.75 | J7: 0.8 | K7: -0.8 | L7: 0.91 | M7: -0.91 | N7: N/A | O7: N/A | P7: N/A | Q7: N/A | R7: N/A | S7: N/A | T7: N/A | U7: N/A
E8: Private Renter | F8: 0.96 | G8: -0.96 | H8: 0.67 | I8: -0.67 | J8: 0.72 | K8: -0.72 | L8: 0.65 | M8: -0.65 | N8: N/A | O8: N/A | P8: N/A | Q8: N/A | R8: N/A | S8: N/A | T8: N/A | U8: N/A
E9: Social Renter | F9: 1.21 | G9: -1.21 | H9: 0.75 | I9: -0.75 | J9: 0.88 | K9: -0.88 | L9: 0.7 | M9: -0.7 | N9: N/A | O9: N/A | P9: N/A | Q9: N/A | R9: N/A | S9: N/A | T9: N/A | U9: N/A
D10: Heating System | E10: Central Heating System | F10: 1.04 | G10: -1.04 | H10: 0.67 | I10: -0.67 | J10: 0.76 | K10: -0.76 | L10: 0.74 | M10: -0.74 | N10: N/A | O10: N/A | P10: 1.09 | Q10: =P10*-1 -> -1.09 | R10: 1.17 | S10: =R10*-1 -> -1.17 | T10: N/A | U10: N/A
E11: Storage Heaters | F11: 1.13 | G11: -1.13 | H11: 0.75 | I11: -0.75 | J11: 0.72 | K11: -0.72 | L11: 0.65 | M11: -0.65 | N11: N/A | O11: N/A | P11: 1.08 | Q11: =P11*-1 -> -1.08 | R11: 1.04 | S11: =R11*-1 -> -1.04 | T11: N/A | U11: N/A
E12: Room Heaters | F12: 1.04 | G12: -1.04 | H12: 0.67 | I12: -0.67 | J12: 0.76 | K12: -0.76 | L12: 0.65 | M12: -0.65 | N12: N/A | O12: N/A | P12: 1.17 | Q12: -1.17 | R12: 1.08 | S12: -1.08 | T12: N/A | U12: N/A
D13: Readiness for Digital Technology | E13: Limited digital literacy | F13: 0.96 | G13: -0.96 | H13: 0.71 | I13: -0.71 | J13: 0.76 | K13: -0.76 | L13: N/A | M13: N/A | N13: 1.12 | O13: =N13*-1 -> -1.12 | P13: 1.04 | Q13: -1.04 | R13: 1.04 | S13: -1.04 | T13: N/A | U13: N/A
C14: PSR-Related Circumstances | D14: Customers in Need of Financial Support | F14: 1.49 | G14: -1.49 | H14: 0.77 | I14: -0.77 | J14: 1.3 | K14: -1.3 | L14: 0.95 | M14: =L14*-1 -> -0.95 | N14: 1.17 | O14: =N14*-1 -> -1.17 | P14: 1.41 | Q14: -1.41 | R14: 1.24 | S14: -1.24 | T14: 0.92 | U14: =T14*-1 -> -0.92
D15: Customers Who Face Difficulties In Engaging With Staff In-Person or on the Phone | F15: 1.03 | G15: -1.03 | H15: 0.63 | I15: -0.63 | J15: 0.95 | K15: -0.95 | L15: 1.16 | M15: -1.16 | N15: 1.34 | O15: -1.34 | P15: 1.44 | Q15: -1.44 | R15: 1.51 | S15: -1.51 | T15: 0.89 | U15: -0.89
D16: Customers Who Find It Difficult to Access Information in Non-tailored Formats | F16: 1.51 | G16: -1.51 | H16: 1.62 | I16: -1.62 | J16: 1.41 | K16: -1.41 | L16: 1.11 | M16: -1.11 | N16: 1.56 | O16: -1.56 | P16: 1.77 | Q16: -1.77 | R16: 1.94 | S16: -1.94 | T16: 1.1 | U16: -1.1
D17: Customers Whose Wellbeing Is at Risk When Energy and Water Supply in Interrupted | F17: 1.23 | G17: -1.23 | H17: 1.01 | I17: -1.01 | J17: 1.35 | K17: -1.35 | L17: 1.06 | M17: -1.06 | N17: 1.3 | O17: -1.3 | P17: 1.92 | Q17: -1.92 | R17: 1.82 | S17: -1.82 | T17: 0.98 | U17: -0.98
D18: Customers Who Face Difficulties in Moving or Interacting With Equipment | F18: 1.67 | G18: -1.67 | H18: 0.83 | I18: =H18*-1 -> -0.83 | J18: 1 | K18: -1 | L18: 1.67 | M18: -1.67 | N18: 2 | O18: -2 | P18: 2 | Q18: -2 | R18: 1.83 | S18: -1.83 | T18: 1.5 | U18: -1.5
D19: Customers Who Face Obstacles in Noticing Danger and Taking Steps to Avoid It | F19: 1.05 | G19: -1.05 | H19: 0.62 | I19: -0.62 | J19: 0.98 | K19: -0.98 | L19: 1.36 | M19: -1.36 | N19: 2 | O19: -2 | P19: 1.75 | Q19: -1.75 | R19: 1.66 | S19: -1.66 | T19: 1.64 | U19: -1.64
F22: Customers in need of financial support | G22: Customers who face difficulties in engaging with staff in person or on the phone | H22: Customers who find it difficult to access information in non-tailored formats | I22: Customers whose wellbeing is at risk when energy and water supply in interrupted | J22: Customers who face difficulties in moving or interacting with equipment | K22: Customers who face obstacles in noticing danger and taking steps to avoid it
D23: Blind | G23: x | H23: x | J23: x | K23: x
D24: Partially sighted | G24: x | H24: x | J24: x | K24: x
D25: Hearing Impairment (inc. Deaf) | G25: x | H25: x | K25: x
D26: Speech impairment | G26: x
D27: Physical impairment | J27: x | K27: x
D28: Developmental condition | G28: x | H28: x | I28: x | J28: x | K28: x
D29: Mental health | G29: x | H29: x | I29: x | J29: x | K29: x
D30: Chronic/serious illness | I30: x
D31: Dementia(s)/ Cognitive Impairment | G31: x | H31: x | I31: x | K31: x
D32: Nebuliser, and apnoea monitor | I32: x
D33: Heart, lung and ventilator | I33: x
D34: Dialysis, feeding pump and automated medicaiton | I34: x
D35: Oxygen Concentrator / use | I35: x
D36: Medicine refrigeration | I36: x
D37: Unable to communicate in English | G37: x | H37: x
D38: Stair Lift, hoist, electric bed | I38: x | J38: x | K38: x
D39: Unable to answer door | J39: x | K39: x
D40: MDE electric showering/ bathing | I40: x
D41: Pensionable age | I41: x | K41: x
D42: Careline/telecare system | G42: x | I42: x | K42: x
D43: Families with children 5 or under | I43: x
D44: Poor sense of smell/ taste | K44: x
D45: Water dependent | I45: x
D46: Temporary - Post hospital recovery | I46: x
D47: Temporary - Young adult householder (<18) | K47: x
D48: Additional presence preferred | G48: x
D49: Resricted hand movement | I49: x | J49: x | K49: x
D50: Financial Vulnerability | F50: x
F51: F14 | G51: F15 | H51: F16 | I51: F17 | J51: F18 | K51: F19
